Body Name,Body,Service Division Label,Service Division Code,Organisational Unit,Expenditure Category,Expenditure Code,CIPFA detailed expediture type,CIPFA detailed expediture code,Narrative,Date,Transaction number,Net Amount,Capital and Revenue,Supplier Name,Supplier ID
Chorley Borough Council,http://statistics.data.gov.uk/id/local-authority/30UE,Unapportionable Central OHeads,1009,NEW Policy & Governance,Mayoral Hospitality,40123,Expenses,5030,34 bottles of table wine for Mayor`s Civic Dinner on 20th May 2016 @ 8.50,01/06/2016,112786,289.00,Revenue,Ace Bars Ltd,54338
Chorley Borough Council,http://statistics.data.gov.uk/id/local-authority/30UE,Housing Benefit Administration,1077,NEW Customer & Digital,Consultants` Fees,40077,Services,5027,CTRS consultancy support 500 plus Public Consultation Support (Lancs Group) 300.,22/06/2016,112792,800.00,Revenue,ACS Ltd,56512
Chorley Borough Council,http://statistics.data.gov.uk/id/local-authority/30UE,Central Support Services,1009,NEW Customer & Digital,Training Course Fees,17010,Indirect Employee Expenses,5002,1 place on Data Protection Act 1998: An A-Z Guide running on 11-Jul-16 in Manchester,24/06/2016,112058,265.00,Revenue,Act Now Training LTD,19583
Chorley Borough Council,http://statistics.data.gov.uk/id/local-authority/30UE,Central Support Services,1009,NEW Customer & Digital,Training Course Fees,17010,Indirect Employee Expenses,5002,1 place on SIROs and IAOs: An A-Z Guide running on 15-Jul-16 in Manchester,29/06/2016,113389,265.00,Revenue,Act Now Training LTD,19583
Chorley Borough Council,http://statistics.data.gov.uk/id/local-authority/30UE,Central Support Services,1009,NEW Early Intervention,Rent/Hire Of Premises,20017,Premises Rents,5007,Hire of Clayton Green Leisure Centre in May for Doorstep Sport Club,01/06/2016,112693,552.00,Revenue,Active Nation UK Ltd,17144
Chorley Borough Council,http://statistics.data.gov.uk/id/local-authority/30UE,Democratic Represent and  Mgnt,1007,NEW Early Intervention,External Contractor - Trust or Charity,50008,Private Contractors,5042,Active Nation Management Fee 2016/17 For the Period May 2016 -March 2017 To be invoiced monthly at the start of each Month,03/06/2016,112844,"31,722.41",Revenue,Active Nation UK Ltd,17144
Chorley Borough Council,http://statistics.data.gov.uk/id/local-authority/30UE,Elections,1012,NEW Policy & Governance,Rent/Hire Of Premises,20017,Premises Rents,5007,Hire of room for polling station 23 June 2016,22/06/2016,113197,450.00,Revenue,Active Nation UK Ltd,17144
Chorley Borough Council,http://statistics.data.gov.uk/id/local-authority/30UE,Service Management & Support,1009,NEW Customer & Digital,Vehicle Maintenance,30045,Direct Transport Costs,5016,Supply items as on quote reference No 20119672/31.05.2016 to be delivered to Bengal St depot,15/06/2016,112971,"1,379.90",Revenue,Aebi Schmidt UK Ltd,17287
Chorley Borough Council,http://statistics.data.gov.uk/id/local-authority/30UE,Community Development,1097,NEW Policy & Governance,Core Funding Grants,40133,Grants and Subscriptions,5031,Delivery of a volunteering provision to support older people in Chorley - Year three 1st instalment,29/06/2016,112787,"5,000.00",Revenue,Age UK,21252
Chorley Borough Council,http://statistics.data.gov.uk/id/local-authority/30UE,Unapportionable Central OHeads,1009,NEW Customer & Digital,Bank Charges,40151,Miscellaneous Expenses,5034,May-16,15/06/2016,112939,"1,888.77",Revenue,Allpay Net Ltd,17242
Chorley Borough Council,http://statistics.data.gov.uk/id/local-authority/30UE,Democratic Represent and  Mgnt,1007,NEW Customer & Digital,Supplies-Grounds Maintenance,40025,"Equipment, Furniture & Materia",5023,5 kg Rainbow Annual mix,22/06/2016,113155,740.00,Revenue,Allturf Limited,74888
Chorley Borough Council,http://statistics.data.gov.uk/id/local-authority/30UE,Corporate Management,1008,NEW Policy & Governance,Car Leasing Payment,14100,Direct Employee Expenses,5001,NAME REDACTED,01/06/2016,111504,"4,149.46",Revenue,Alphabet (Uk) Fleet Management Ltd,16651
Chorley Borough Council,http://statistics.data.gov.uk/id/local-authority/30UE,Corporate Management,1008,NEW Policy & Governance,Car Leasing Payment,14100,Direct Employee Expenses,5001,vat,01/06/2016,111504,346.09,Revenue,Alphabet (Uk) Fleet Management Ltd,16651
Chorley Borough Council,http://statistics.data.gov.uk/id/local-authority/30UE,Control Accounts,Control,NEW Policy & Governance,Manual Control Account,1,Balance Sheet,Balance,Balance Sheet,01/06/2016,111504,-346.09,Revenue,Alphabet (Uk) Fleet Management Ltd,16651
Chorley Borough Council,http://statistics.data.gov.uk/id/local-authority/30UE,Corporate Management,1008,NEW Policy & Governance,Car Leasing Payment,14100,Direct Employee Expenses,5001,NAME REDACTED,01/06/2016,112671,345.79,Revenue,Alphabet (Uk) Fleet Management Ltd,16651
Chorley Borough Council,http://statistics.data.gov.uk/id/local-authority/30UE,Capital,Capital,NEW Customer & Digital,Main Contractor,3007,Capital Expenditure,Capital,"Footpath repairs and resurfacing at Tatton Recreation Ground, Chorley as per specification and quotation.",22/06/2016,112093,"29,896.00",Capital,AP Broom Landscapes,67257
Chorley Borough Council,http://statistics.data.gov.uk/id/local-authority/30UE,Democratic Represent and  Mgnt,1007,NEW Customer & Digital,Supplies-Grounds Maintenance,40025,"Equipment, Furniture & Materia",5023,"rotivate, seed & roll wildflower area @ Astley Park",22/06/2016,113158,"2,566.00",Revenue,AP Broom Landscapes,67257
Chorley Borough Council,http://statistics.data.gov.uk/id/local-authority/30UE,Service Management & Support,1009,NEW Customer & Digital,Supplies-Grounds Maintenance,40025,"Equipment, Furniture & Materia",5023,Supply and fit stile and fence at the bottom of Common bank lane as agreed.,08/06/2016,112696,480.00,Revenue,Ark Welding Ltd,18154
Chorley Borough Council,http://statistics.data.gov.uk/id/local-authority/30UE,Capital,Capital,NEW Customer & Digital,Main Contractor,3007,Capital Expenditure,Capital,Remove gates from Knowley Brow Play Area - Heapey Road and repair -(they are then taken to M W Rainford for shot blasting,08/06/2016,112698,650.00,Capital,Ark Welding Ltd,18154
Chorley Borough Council,http://statistics.data.gov.uk/id/local-authority/30UE,Service Management & Support,1009,NEW Customer & Digital,Supplies-Grounds Maintenance,40025,"Equipment, Furniture & Materia",5023,Manufacture and supply 3 x memorial benches as on invoice number 01675,22/06/2016,113203,585.00,Revenue,Ark Welding Ltd,18154
Chorley Borough Council,http://statistics.data.gov.uk/id/local-authority/30UE,Service Management & Support,1009,NEW Customer & Digital,External Contractor,40198,Miscellaneous Expenses,5034,Shorten willow sculptures as on invoice number 01679,22/06/2016,113238,360.00,Revenue,Ark Welding Ltd,18154
Chorley Borough Council,http://statistics.data.gov.uk/id/local-authority/30UE,Service Management & Support,1009,NEW Customer & Digital,Supplies-Grounds Maintenance,40025,"Equipment, Furniture & Materia",5023,Supply 10 waste bin liners as on invoice number 01688,22/06/2016,113245,600.00,Revenue,Ark Welding Ltd,18154
Chorley Borough Council,http://statistics.data.gov.uk/id/local-authority/30UE,Corporate Management,1008,NEW Policy & Governance,Car Leasing Payment,14100,Direct Employee Expenses,5001,NAME REDACTED,01/06/2016,112373,348.00,Revenue,Arnold Clark Finance Ltd,20685
Chorley Borough Council,http://statistics.data.gov.uk/id/local-authority/30UE,Corporate Management,1008,NEW Policy & Governance,Car Leasing Payment,14100,Direct Employee Expenses,5001,Car Lease Payment,01/06/2016,112373,30.24,Revenue,Arnold Clark Finance Ltd,20685
Chorley Borough Council,http://statistics.data.gov.uk/id/local-authority/30UE,Control Accounts,Control,NEW Policy & Governance,Manual Control Account,1,Balance Sheet,Balance,Car Lease Payment,01/06/2016,112373,-30.24,Revenue,Arnold Clark Finance Ltd,20685
Chorley Borough Council,http://statistics.data.gov.uk/id/local-authority/30UE,Central Support Services,1009,NEW Policy & Governance,Car Leasing Payment,14100,Direct Employee Expenses,5001,NAME REDACTED,01/06/2016,112373,424.92,Revenue,Arnold Clark Finance Ltd,20685
Chorley Borough Council,http://statistics.data.gov.uk/id/local-authority/30UE,Central Support Services,1009,NEW Policy & Governance,Car Leasing Payment,14100,Direct Employee Expenses,5001,Car Lease Payment,01/06/2016,112373,35.37,Revenue,Arnold Clark Finance Ltd,20685
Chorley Borough Council,http://statistics.data.gov.uk/id/local-authority/30UE,Control Accounts,Control,NEW Policy & Governance,Manual Control Account,1,Balance Sheet,Balance,Balance Sheet,01/06/2016,112373,-35.37,Revenue,Arnold Clark Finance Ltd,20685
Chorley Borough Council,http://statistics.data.gov.uk/id/local-authority/30UE,Central Support Services,1009,NEW Policy & Governance,Car Leasing Payment,14100,Direct Employee Expenses,5001,NAME REDACTED,01/06/2016,112596,7.60,Revenue,Arnold Clark Finance Ltd,20685
Chorley Borough Council,http://statistics.data.gov.uk/id/local-authority/30UE,Central Support Services,1009,NEW Policy & Governance,Car Leasing Payment,14100,Direct Employee Expenses,5001,Car Lease Payment,01/06/2016,112596,0.66,Revenue,Arnold Clark Finance Ltd,20685
Chorley Borough Council,http://statistics.data.gov.uk/id/local-authority/30UE,Control Accounts,Control,NEW Policy & Governance,Manual Control Account,1,Balance Sheet,Balance,Balance Sheet,01/06/2016,112596,-0.66,Revenue,Arnold Clark Finance Ltd,20685
Chorley Borough Council,http://statistics.data.gov.uk/id/local-authority/30UE,Central Support Services,1009,NEW Policy & Governance,Car Leasing Payment,14100,Direct Employee Expenses,5001,Car Lease Payment,01/06/2016,112596,358.30,Revenue,Arnold Clark Finance Ltd,20685
Chorley Borough Council,http://statistics.data.gov.uk/id/local-authority/30UE,Central Support Services,1009,NEW Policy & Governance,Car Leasing Payment,14100,Direct Employee Expenses,5001,Car Lease Payment,01/06/2016,112596,30.95,Revenue,Arnold Clark Finance Ltd,20685
Chorley Borough Council,http://statistics.data.gov.uk/id/local-authority/30UE,Control Accounts,Control,NEW Policy & Governance,Manual Control Account,1,Balance Sheet,Balance,Balance Sheet,01/06/2016,112596,-30.95,Revenue,Arnold Clark Finance Ltd,20685
Chorley Borough Council,http://statistics.data.gov.uk/id/local-authority/30UE,Central Support Services,1009,NEW Policy & Governance,Car Leasing Payment,14100,Direct Employee Expenses,5001,NAME REDACTED,01/06/2016,112597,"3,151.32",Revenue,Arnold Clark Finance Ltd,20685
Chorley Borough Council,http://statistics.data.gov.uk/id/local-authority/30UE,Central Support Services,1009,NEW Policy & Governance,Car Leasing Payment,14100,Direct Employee Expenses,5001,Car Lease Payment,01/06/2016,112597,270.95,Revenue,Arnold Clark Finance Ltd,20685
Chorley Borough Council,http://statistics.data.gov.uk/id/local-authority/30UE,Control Accounts,Control,NEW Policy & Governance,Manual Control Account,1,Balance Sheet,Balance,Balance Sheet,01/06/2016,112597,-270.95,Revenue,Arnold Clark Finance Ltd,20685
Chorley Borough Council,http://statistics.data.gov.uk/id/local-authority/30UE,Corporate Management,1008,NEW Policy & Governance,Car Leasing Payment,14100,Direct Employee Expenses,5001,NAME REDACTED,01/06/2016,112598,"3,852.00",Revenue,Arnold Clark Finance Ltd,20685
Chorley Borough Council,http://statistics.data.gov.uk/id/local-authority/30UE,Corporate Management,1008,NEW Policy & Governance,Car Leasing Payment,14100,Direct Employee Expenses,5001,Car Lease Payment,01/06/2016,112598,345.63,Revenue,Arnold Clark Finance Ltd,20685
Chorley Borough Council,http://statistics.data.gov.uk/id/local-authority/30UE,Control Accounts,Control,NEW Policy & Governance,Manual Control Account,1,Balance Sheet,Balance,Balance Sheet,01/06/2016,112598,-345.63,Revenue,Arnold Clark Finance Ltd,20685
Chorley Borough Council,http://statistics.data.gov.uk/id/local-authority/30UE,Corporate Management,1008,NEW Policy & Governance,Car Leasing Payment,14100,Direct Employee Expenses,5001,NAME REDACTED,10/06/2016,112943,348.00,Revenue,Arnold Clark Finance Ltd,20685
Chorley Borough Council,http://statistics.data.gov.uk/id/local-authority/30UE,Corporate Management,1008,NEW Policy & Governance,Car Leasing Payment,14100,Direct Employee Expenses,5001,Car Lease Payment,10/06/2016,112943,30.24,Revenue,Arnold Clark Finance Ltd,20685
Chorley Borough Council,http://statistics.data.gov.uk/id/local-authority/30UE,Control Accounts,Control,NEW Policy & Governance,Manual Control Account,1,Balance Sheet,Balance,Balance Sheet,10/06/2016,112943,-30.24,Revenue,Arnold Clark Finance Ltd,20685
Chorley Borough Council,http://statistics.data.gov.uk/id/local-authority/30UE,Central Support Services,1009,NEW Policy & Governance,Car Leasing Payment,14100,Direct Employee Expenses,5001,NAME REDACTED,10/06/2016,112943,214.00,Revenue,Arnold Clark Finance Ltd,20685
Chorley Borough Council,http://statistics.data.gov.uk/id/local-authority/30UE,Central Support Services,1009,NEW Policy & Governance,Car Leasing Payment,14100,Direct Employee Expenses,5001,Car Lease Payment,10/06/2016,112943,17.81,Revenue,Arnold Clark Finance Ltd,20685
Chorley Borough Council,http://statistics.data.gov.uk/id/local-authority/30UE,Control Accounts,Control,NEW Policy & Governance,Manual Control Account,1,Balance Sheet,Balance,Balance Sheet,10/06/2016,112943,-17.81,Revenue,Arnold Clark Finance Ltd,20685
Chorley Borough Council,http://statistics.data.gov.uk/id/local-authority/30UE,Service Management & Support,1009,NEW Customer & Digital,Supplies-Grounds Maintenance,40025,"Equipment, Furniture & Materia",5023,5 @ 4.2m x 100mm x 100mm PAR,10/06/2016,112951,156.00,Revenue,Asc Timber Supplies Ltd,16240
Chorley Borough Council,http://statistics.data.gov.uk/id/local-authority/30UE,Service Management & Support,1009,NEW Customer & Digital,Supplies-Grounds Maintenance,40025,"Equipment, Furniture & Materia",5023,50 @ 855mm x 125mm x 25mm T& G v cut,10/06/2016,112951,87.50,Revenue,Asc Timber Supplies Ltd,16240
Chorley Borough Council,http://statistics.data.gov.uk/id/local-authority/30UE,Service Management & Support,1009,NEW Customer & Digital,Supplies-Grounds Maintenance,40025,"Equipment, Furniture & Materia",5023,1 @ 3.6m x 175mm x 75mm PAR,10/06/2016,112951,21.20,Revenue,Asc Timber Supplies Ltd,16240
Chorley Borough Council,http://statistics.data.gov.uk/id/local-authority/30UE,Service Management & Support,1009,NEW Customer & Digital,Supplies-Grounds Maintenance,40025,"Equipment, Furniture & Materia",5023,Miscellaneous goods to the value of 20,10/06/2016,112951,21.55,Revenue,Asc Timber Supplies Ltd,16240
Chorley Borough Council,http://statistics.data.gov.uk/id/local-authority/30UE,Democratic Represent and  Mgnt,1007,NEW Customer & Digital,Miscellaneous Expenses,40200,Miscellaneous Expenses,5034,reed bed in Astley Park with rock ramps revetment of eroded banks as per the contract documentation and agreed specification.,10/06/2016,112841,"1,000.00",Revenue,Bailey Construction (NW) Ltd,58139
Chorley Borough Council,http://statistics.data.gov.uk/id/local-authority/30UE,Unapportionable Central OHeads,1009,NEW Customer & Digital,Consultants` Fees,40077,Services,5027,"Support as agreed with Customer, Transactional and ICT services",03/06/2016,112838,"1,950.00",Revenue,REDACTED PERSONAL DATA,22238
Chorley Borough Council,http://statistics.data.gov.uk/id/local-authority/30UE,Corporate Management,1008,NEW Chief Executive,Professional Fees,40063,Services,5027,consultation on combined authority,29/06/2016,111701,285.36,Revenue,Blackpool Borough Council,16518
Chorley Borough Council,http://statistics.data.gov.uk/id/local-authority/30UE,Unapportionable Central OHeads,1009,NEW Policy & Governance,Service Fees,40056,Services,5027,Hearing Tests for Staff,22/06/2016,113351,"1,311.00",Revenue,Blue Health Care,22142
Chorley Borough Council,http://statistics.data.gov.uk/id/local-authority/30UE,Unapportionable Central OHeads,1009,NEW Policy & Governance,Service Fees,40056,Services,5027,Attendance at Health & Wellbeing Event - 08/06/16,29/06/2016,113384,517.00,Revenue,Blue Health Care,22142
Chorley Borough Council,http://statistics.data.gov.uk/id/local-authority/30UE,Central Support Services,1009,NEW Early Intervention,HR Approved Training Expenses,17001,Indirect Employee Expenses,5002,1 place for NAME REDACTED on Level 3 Education & training course,01/06/2016,112691,395.00,Revenue,Bolton CVS,75657
Chorley Borough Council,http://statistics.data.gov.uk/id/local-authority/30UE,Democratic Represent and  Mgnt,1007,NEW Customer & Digital,Maintenance/Nature Reserves,20045,Grounds Maintenance Costs,5013,BOW17/515 Lower Burgh Meadows Site visit and advice.,29/06/2016,113450,344.30,Revenue,Bowland Ecology LTD,46442
Chorley Borough Council,http://statistics.data.gov.uk/id/local-authority/30UE,Capital,Capital,NEW Business Development & Growth,Architects Fees,3022,Capital Expenditure,Capital,Disbursement of Dunelm Ecology bat survey.,22/06/2016,113330,"2,375.00",Capital,Brewster Bye Architects,70303
Chorley Borough Council,http://statistics.data.gov.uk/id/local-authority/30UE,Unapportionable Central OHeads,1009,NEW Policy & Governance,Mayors Medals,40029,"Equipment, Furniture & Materia",5023,Hand painted name on Mayor`s Honours Board.,22/06/2016,113199,280.00,Revenue,Brian the Brush Ltd,60093
Chorley Borough Council,http://statistics.data.gov.uk/id/local-authority/30UE,Service Management & Support,1009,NEW Customer & Digital,Supplies-Grounds Maintenance,40025,"Equipment, Furniture & Materia",5023,Supply 20 tonne of grade 1 topsoil delivered to Bengal St depot,08/06/2016,112490,422.80,Revenue,Burt Wesley & Sons ltd,67887
Chorley Borough Council,http://statistics.data.gov.uk/id/local-authority/30UE,Service Management & Support,1009,NEW Customer & Digital,External Contractor,40198,Miscellaneous Expenses,5034,Remove fly tip garage at Botany as requested,22/06/2016,113103,120.00,Revenue,Burt Wesley & Sons ltd,67887
Chorley Borough Council,http://statistics.data.gov.uk/id/local-authority/30UE,Service Management & Support,1009,NEW Customer & Digital,Supplies-Grounds Maintenance,40025,"Equipment, Furniture & Materia",5023,Supply 20 tonne of grade 2 top soil delivered to Buttermere play area as requested,22/06/2016,113103,252.00,Revenue,Burt Wesley & Sons ltd,67887
Chorley Borough Council,http://statistics.data.gov.uk/id/local-authority/30UE,Service Management & Support,1009,NEW Customer & Digital,Supplies-Grounds Maintenance,40025,"Equipment, Furniture & Materia",5023,Highway C2 fast setting mortar.  25kg bag.  Product Code = 02110551,08/06/2016,112686,412.00,Revenue,C & W BERRY LIMITED,18180
Chorley Borough Council,http://statistics.data.gov.uk/id/local-authority/30UE,Service Management & Support,1009,NEW Customer & Digital,Supplies-Grounds Maintenance,40025,"Equipment, Furniture & Materia",5023,Supply 2 X pallets of Highway C2 Fast setting mortar to be delivered to Bengal St depot PR7 1SA.,15/06/2016,112927,412.00,Revenue,C & W BERRY LIMITED,18180
Chorley Borough Council,http://statistics.data.gov.uk/id/local-authority/30UE,Service Management & Support,1009,NEW Customer & Digital,Supplies-Grounds Maintenance,40025,"Equipment, Furniture & Materia",5023,Supply 2 X pallets of Highway C2 Fast setting mortar to be delivered to Bengal St depot PR7 1SA.,15/06/2016,113097,412.00,Revenue,C & W BERRY LIMITED,18180
Chorley Borough Council,http://statistics.data.gov.uk/id/local-authority/30UE,Service Management & Support,1009,NEW Customer & Digital,External Contractor,40198,Miscellaneous Expenses,5034,Drainage investigation at Adlington Cricket Club,08/06/2016,112613,600.00,Revenue,C J Lyon,16579
Chorley Borough Council,http://statistics.data.gov.uk/id/local-authority/30UE,Service Management & Support,1009,NEW Customer & Digital,Vehicle Maintenance,30045,Direct Transport Costs,5016,carryout pre MOT inspection and carryout repairs to RV14DVB as required,08/06/2016,112631,929.91,Revenue,C P Davidson & Sons Ltd,21093
Chorley Borough Council,http://statistics.data.gov.uk/id/local-authority/30UE,Service Management & Support,1009,NEW Customer & Digital,Vehicle Maintenance,30045,Direct Transport Costs,5016,Carryout FTA repairs on DK07LDE as per 6 weekly inspection sheet on invoice number W51669,08/06/2016,112749,492.92,Revenue,C P Davidson & Sons Ltd,21093
Chorley Borough Council,http://statistics.data.gov.uk/id/local-authority/30UE,Service Management & Support,1009,NEW Customer & Digital,Vehicle Maintenance,30045,Direct Transport Costs,5016,Carryout pre MOT inspection and repairs on DK05CXG take for annual test as required,22/06/2016,113212,810.66,Revenue,C P Davidson & Sons Ltd,21093
Chorley Borough Council,http://statistics.data.gov.uk/id/local-authority/30UE,Central Support Services,1009,NEW Early Intervention,Tools & Equipment - Maintenance,40005,"Equipment, Furniture & Materia",5023,UKAS Calibration of 2 x sound level meters and 2 x sound calibrators plus collect and return carriage.,10/06/2016,112798,490.00,Revenue,Campbell Associates,21084
Chorley Borough Council,http://statistics.data.gov.uk/id/local-authority/30UE,Unapportionable Central OHeads,1009,NEW Customer & Digital,General Subscriptions,40146,Grants and Subscriptions,5031,Development fund,13/06/2016,111999,"9,193.00",Revenue,Capita Business Services Ltd,17151
Chorley Borough Council,http://statistics.data.gov.uk/id/local-authority/30UE,Central Support Services,1009,NEW Customer & Digital,Computer Software-Maintenance,40107,Communication and Computing,5028,software maintenance,13/06/2016,112000,"42,762.00",Revenue,Capita Business Services Ltd,17151
Chorley Borough Council,http://statistics.data.gov.uk/id/local-authority/30UE,Unapportionable Central OHeads,1009,NEW Customer & Digital,Training Course Fees,17010,Indirect Employee Expenses,5002,Benefits and Council Tax system training manual guidance notes 2016 17 subscription.  Invoice number 6003305334 Customer ,15/06/2016,112498,845.00,Revenue,Capita Business Services Ltd,17151
Chorley Borough Council,http://statistics.data.gov.uk/id/local-authority/30UE,Housing Benefit Administration,1077,NEW Customer & Digital,Computer Software-Additional,40102,Communication and Computing,5028,"Cost of  software changes to LCTR, PDP, BDATES and removal of FP. 4,650.02.",08/06/2016,112789,"4,874.51",Revenue,Capita Business Services Ltd,17151
Chorley Borough Council,http://statistics.data.gov.uk/id/local-authority/30UE,Unapportionable Central OHeads,1009,NEW Customer & Digital,Conferences - Staff,40120,Expenses,5030,1 place for  Chorley delegate to attend the 2016 Subsidy Seminar. Manchester. 17 Mar 16.,15/06/2016,113026,350.00,Revenue,Capita Business Services Ltd,17151
Chorley Borough Council,http://statistics.data.gov.uk/id/local-authority/30UE,Unapportionable Central OHeads,1009,NEW Customer & Digital,Computer - Support Services,40111,Communication and Computing,5028,Academy Revs and Bens Remote Support 1.4.16 to 31.5.16 - Invoice 6003342028.,17/06/2016,113133,"6,666.67",Revenue,Capita Business Services Ltd,17151
Chorley Borough Council,http://statistics.data.gov.uk/id/local-authority/30UE,Unapportionable Central OHeads,1009,NEW Customer & Digital,Computer - Support Services,40111,Communication and Computing,5028,Academy Revs and Bens Remote Support 1.6.16 to 31.3.17 - Invoice 6003342029.,17/06/2016,113134,"33,333.33",Revenue,Capita Business Services Ltd,17151
Chorley Borough Council,http://statistics.data.gov.uk/id/local-authority/30UE,Unapportionable Central OHeads,1009,NEW Customer & Digital,Computer - Support Services,40111,Communication and Computing,5028,Academy Revs and Bens solution 1.4.16 to 31.5.16 - Invoice 6003340820.,17/06/2016,113135,"6,333.00",Revenue,Capita Business Services Ltd,17151
Chorley Borough Council,http://statistics.data.gov.uk/id/local-authority/30UE,Unapportionable Central OHeads,1009,NEW Customer & Digital,Computer - Support Services,40111,Communication and Computing,5028,Academy Revs and Bens Solution 1.6.16 to 31.3.17 - Invoice 6003340821.,17/06/2016,113136,"31,667.00",Revenue,Capita Business Services Ltd,17151
Chorley Borough Council,http://statistics.data.gov.uk/id/local-authority/30UE,Unapportionable Central OHeads,1009,NEW Customer & Digital,Computer - Support Services,40111,Communication and Computing,5028,remote support service,14/06/2016,113137,"3,333.00",Revenue,Capita Business Services Ltd,17151
Chorley Borough Council,http://statistics.data.gov.uk/id/local-authority/30UE,Unapportionable Central OHeads,1009,NEW Customer & Digital,Computer - Support Services,40111,Communication and Computing,5028,remote support service,14/06/2016,113138,"36,667.00",Revenue,Capita Business Services Ltd,17151
Chorley Borough Council,http://statistics.data.gov.uk/id/local-authority/30UE,Unapportionable Central OHeads,1009,NEW Policy & Governance,Mayoral Hospitality,40123,Expenses,5030,Catering for Mayor`s Civic Dinner on 20th May 2016.,29/06/2016,112779,"2,432.00",Revenue,Carringtons Catering Ltd,75362
Chorley Borough Council,http://statistics.data.gov.uk/id/local-authority/30UE,Unapportionable Central OHeads,1009,NEW Business Development & Growth,General Repairs - Reactive,20004,Repairs Maintenance & Alts,5005,Blanket order for Reactive works for 2016.,15/06/2016,112968,380.00,Revenue,Castle mount Contracts Ltd,66621
Chorley Borough Council,http://statistics.data.gov.uk/id/local-authority/30UE,Unapportionable Central OHeads,1009,NEW Customer & Digital,General Repairs - Reactive,20004,Repairs Maintenance & Alts,5005,Please supply 3 tonne of 10mm topping tarmac.  To be collected from Redscar Depot on Saturday 23rd April 2016.,22/06/2016,113151,302.10,Revenue,CEMEX UK Materials Ltd,16849
Chorley Borough Council,http://statistics.data.gov.uk/id/local-authority/30UE,Central Support Services,1009,NEW Early Intervention,Hire Of Transport,30028,Contrct Hire & Operating Lease,5018,Hire of transport for Reach Up and Go activities Eureka on 12th April,01/06/2016,112756,150.00,Revenue,Central Lancs Dial-A-Ride Ltd,16617
Chorley Borough Council,http://statistics.data.gov.uk/id/local-authority/30UE,Central Support Services,1009,NEW Early Intervention,Hire Of Transport,30028,Contrct Hire & Operating Lease,5018,Hire of transport for Reach Up and Go activities Old Holly Farm - 13th April,01/06/2016,112756,75.00,Revenue,Central Lancs Dial-A-Ride Ltd,16617
Chorley Borough Council,http://statistics.data.gov.uk/id/local-authority/30UE,Central Support Services,1009,NEW Early Intervention,Hire Of Transport,30028,Contrct Hire & Operating Lease,5018,Hire of transport for Reach Up and Go activities Blackpool Circus - 20th April,01/06/2016,112756,135.00,Revenue,Central Lancs Dial-A-Ride Ltd,16617
Chorley Borough Council,http://statistics.data.gov.uk/id/local-authority/30UE,Business Support,1095,NEW Business Development & Growth,Miscellaneous Expenses,40200,Miscellaneous Expenses,5034,sib grant,22/06/2016,113293,250.00,Revenue,NAME REDACTED,76076
Chorley Borough Council,http://statistics.data.gov.uk/id/local-authority/30UE,Parking Services,1066,NEW Business Development & Growth,External Contractors,50008,Private Contractors,5042,Mar-16,01/06/2016,112661,501.48,Revenue,Chipside Ltd,22063
Chorley Borough Council,http://statistics.data.gov.uk/id/local-authority/30UE,Parking Services,1066,NEW Business Development & Growth,External Contractors,50008,Private Contractors,5042,Processing001 - Notice Processing Services April 16 - September 16 @ 2.89 per pcn,01/06/2016,112724,898.79,Revenue,Chipside Ltd,22063
Chorley Borough Council,http://statistics.data.gov.uk/id/local-authority/30UE,Unapportionable Central OHeads,1009,NEW Chief Executive,Stationery,40050,"Printing, Stationery & General",5026,art items,28/06/2016,113469,3.29,Revenue,Chorley BC Petty Cash,16301
Chorley Borough Council,http://statistics.data.gov.uk/id/local-authority/30UE,Central Support Services,1009,NEW Chief Executive,Miscellaneous Expenses,40200,Miscellaneous Expenses,5034,gold envelopes,28/06/2016,113469,6.65,Revenue,Chorley BC Petty Cash,16301
Chorley Borough Council,http://statistics.data.gov.uk/id/local-authority/30UE,Democratic Represent and  Mgnt,1007,NEW Chief Executive,Use Of Transport - Mayoral Car,30015,Transport Recharges,5017,car wash,28/06/2016,113469,6.00,Revenue,Chorley BC Petty Cash,16301
Chorley Borough Council,http://statistics.data.gov.uk/id/local-authority/30UE,Democratic Represent and  Mgnt,1007,NEW Chief Executive,Mayoral Hospitality,40123,Expenses,5030,raffle prize,28/06/2016,113469,15.00,Revenue,Chorley BC Petty Cash,16301
Chorley Borough Council,http://statistics.data.gov.uk/id/local-authority/30UE,Service Management & Support,1009,NEW Chief Executive,Petrol,30005,Direct Transport Costs,5016,fuel,28/06/2016,113469,8.06,Revenue,Chorley BC Petty Cash,16301
Chorley Borough Council,http://statistics.data.gov.uk/id/local-authority/30UE,Democratic Represent and  Mgnt,1007,NEW Chief Executive,Cleaning Materials,40019,"Equipment, Furniture & Materia",5023,key cut,28/06/2016,113469,5.62,Revenue,Chorley BC Petty Cash,16301
Chorley Borough Council,http://statistics.data.gov.uk/id/local-authority/30UE,Democratic Represent and  Mgnt,1007,NEW Chief Executive,Cleaning Materials,40019,"Equipment, Furniture & Materia",5023,key cut,28/06/2016,113469,3.50,Revenue,Chorley BC Petty Cash,16301
Chorley Borough Council,http://statistics.data.gov.uk/id/local-authority/30UE,Democratic Represent and  Mgnt,1007,NEW Chief Executive,Miscellaneous Expenses,40200,Miscellaneous Expenses,5034,training,28/06/2016,113469,25.00,Revenue,Chorley BC Petty Cash,16301
Chorley Borough Council,http://statistics.data.gov.uk/id/local-authority/30UE,Unapportionable Central OHeads,1009,NEW Chief Executive,Refreshments,40036,Catering,5024,sugar,28/06/2016,113469,8.79,Revenue,Chorley BC Petty Cash,16301
Chorley Borough Council,http://statistics.data.gov.uk/id/local-authority/30UE,Democratic Represent and  Mgnt,1007,NEW Chief Executive,Use Of Transport - Mayoral Car,30015,Transport Recharges,5017,car wash,28/06/2016,113469,5.00,Revenue,Chorley BC Petty Cash,16301
Chorley Borough Council,http://statistics.data.gov.uk/id/local-authority/30UE,Democratic Represent and  Mgnt,1007,NEW Chief Executive,Use Of Transport - Mayoral Car,30015,Transport Recharges,5017,car wash,28/06/2016,113469,4.00,Revenue,Chorley BC Petty Cash,16301
Chorley Borough Council,http://statistics.data.gov.uk/id/local-authority/30UE,Elections,1012,NEW Chief Executive,Miscellaneous Expenses,40200,Miscellaneous Expenses,5034,first aid,28/06/2016,113469,13.63,Revenue,Chorley BC Petty Cash,16301
Chorley Borough Council,http://statistics.data.gov.uk/id/local-authority/30UE,Democratic Represent and  Mgnt,1007,NEW Chief Executive,Mayoral Hospitality,40123,Expenses,5030,wine,28/06/2016,113469,19.96,Revenue,Chorley BC Petty Cash,16301
Chorley Borough Council,http://statistics.data.gov.uk/id/local-authority/30UE,Unapportionable Central OHeads,1009,NEW Chief Executive,Cleaning Materials,40019,"Equipment, Furniture & Materia",5023,milk,28/06/2016,113469,1.78,Revenue,Chorley BC Petty Cash,16301
Chorley Borough Council,http://statistics.data.gov.uk/id/local-authority/30UE,Unapportionable Central OHeads,1009,NEW Chief Executive,Cleaning Materials,40019,"Equipment, Furniture & Materia",5023,cleaning,28/06/2016,113469,1.98,Revenue,Chorley BC Petty Cash,16301
Chorley Borough Council,http://statistics.data.gov.uk/id/local-authority/30UE,Democratic Represent and  Mgnt,1007,NEW Chief Executive,Use Of Transport - Mayoral Car,30015,Transport Recharges,5017,car wash,28/06/2016,113469,6.00,Revenue,Chorley BC Petty Cash,16301
Chorley Borough Council,http://statistics.data.gov.uk/id/local-authority/30UE,Economic Development,1096,NEW Chief Executive,Miscellaneous Expenses,40200,Miscellaneous Expenses,5034,postage,28/06/2016,113469,12.98,Revenue,Chorley BC Petty Cash,16301
Chorley Borough Council,http://statistics.data.gov.uk/id/local-authority/30UE,Economic Development,1096,NEW Chief Executive,Miscellaneous Expenses,40200,Miscellaneous Expenses,5034,spray paint,28/06/2016,113469,3.33,Revenue,Chorley BC Petty Cash,16301
Chorley Borough Council,http://statistics.data.gov.uk/id/local-authority/30UE,Democratic Represent and  Mgnt,1007,NEW Chief Executive,Refreshments,40036,Catering,5024,fabric,28/06/2016,113469,11.25,Revenue,Chorley BC Petty Cash,16301
Chorley Borough Council,http://statistics.data.gov.uk/id/local-authority/30UE,Democratic Represent and  Mgnt,1007,NEW Chief Executive,Refreshments,40036,Catering,5024,fabric,28/06/2016,113469,11.25,Revenue,Chorley BC Petty Cash,16301
Chorley Borough Council,http://statistics.data.gov.uk/id/local-authority/30UE,Democratic Represent and  Mgnt,1007,NEW Chief Executive,Refreshments,40036,Catering,5024,garden supplies,28/06/2016,113469,13.13,Revenue,Chorley BC Petty Cash,16301
Chorley Borough Council,http://statistics.data.gov.uk/id/local-authority/30UE,Unapportionable Central OHeads,1009,NEW Chief Executive,Tools & Equipment - Purchase,40003,"Equipment, Furniture & Materia",5023,light bulbs,28/06/2016,113469,6.00,Revenue,Chorley BC Petty Cash,16301
Chorley Borough Council,http://statistics.data.gov.uk/id/local-authority/30UE,Unapportionable Central OHeads,1009,NEW Chief Executive,Tools & Equipment - Purchase,40003,"Equipment, Furniture & Materia",5023,orange juice,28/06/2016,113469,4.00,Revenue,Chorley BC Petty Cash,16301
Chorley Borough Council,http://statistics.data.gov.uk/id/local-authority/30UE,Unapportionable Central OHeads,1009,NEW Chief Executive,Refreshments,40036,Catering,5024,milk,28/06/2016,113469,4.17,Revenue,Chorley BC Petty Cash,16301
Chorley Borough Council,http://statistics.data.gov.uk/id/local-authority/30UE,Unapportionable Central OHeads,1009,NEW Chief Executive,Tools & Equipment - Purchase,40003,"Equipment, Furniture & Materia",5023,sealed containers,28/06/2016,113469,7.50,Revenue,Chorley BC Petty Cash,16301
Chorley Borough Council,http://statistics.data.gov.uk/id/local-authority/30UE,Economic Development,1096,NEW Chief Executive,Tools & Equipment - Maintenance,40005,"Equipment, Furniture & Materia",5023,chains,28/06/2016,113469,2.92,Revenue,Chorley BC Petty Cash,16301
Chorley Borough Council,http://statistics.data.gov.uk/id/local-authority/30UE,Democratic Represent and  Mgnt,1007,NEW Chief Executive,Tools & Equipment - Purchase,40003,"Equipment, Furniture & Materia",5023,refereshments,28/06/2016,113469,7.00,Revenue,Chorley BC Petty Cash,16301
Chorley Borough Council,http://statistics.data.gov.uk/id/local-authority/30UE,Democratic Represent and  Mgnt,1007,NEW Chief Executive,Use Of Transport - Mayoral Car,30015,Transport Recharges,5017,car wash,28/06/2016,113469,6.00,Revenue,Chorley BC Petty Cash,16301
Chorley Borough Council,http://statistics.data.gov.uk/id/local-authority/30UE,Unapportionable Central OHeads,1009,NEW Chief Executive,Uniforms,40039,"Clothing, Uniforms and Laundry",5025,dry cleaning,28/06/2016,113469,8.30,Revenue,Chorley BC Petty Cash,16301
Chorley Borough Council,http://statistics.data.gov.uk/id/local-authority/30UE,Unapportionable Central OHeads,1009,NEW Chief Executive,Refreshments,40036,Catering,5024,refreshments,28/06/2016,113469,12.02,Revenue,Chorley BC Petty Cash,16301
Chorley Borough Council,http://statistics.data.gov.uk/id/local-authority/30UE,Unapportionable Central OHeads,1009,NEW Chief Executive,Cleaning Materials,40019,"Equipment, Furniture & Materia",5023,batteries,28/06/2016,113469,6.65,Revenue,Chorley BC Petty Cash,16301
Chorley Borough Council,http://statistics.data.gov.uk/id/local-authority/30UE,Unapportionable Central OHeads,1009,NEW Chief Executive,Refreshments,40036,Catering,5024,refreshments,28/06/2016,113469,13.25,Revenue,Chorley BC Petty Cash,16301
Chorley Borough Council,http://statistics.data.gov.uk/id/local-authority/30UE,Service Management & Support,1009,NEW Chief Executive,Diesel/Derv,30007,Direct Transport Costs,5016,fuel,28/06/2016,113469,28.87,Revenue,Chorley BC Petty Cash,16301
Chorley Borough Council,http://statistics.data.gov.uk/id/local-authority/30UE,Democratic Represent and  Mgnt,1007,NEW Chief Executive,Fixtures & Fittings - Purchase,20027,Fixtures and Fittings,5010,key cut,28/06/2016,113469,4.92,Revenue,Chorley BC Petty Cash,16301
Chorley Borough Council,http://statistics.data.gov.uk/id/local-authority/30UE,Unapportionable Central OHeads,1009,NEW Chief Executive,Uniforms,40039,"Clothing, Uniforms and Laundry",5025,dry cleaning,28/06/2016,113469,16.93,Revenue,Chorley BC Petty Cash,16301
Chorley Borough Council,http://statistics.data.gov.uk/id/local-authority/30UE,Democratic Represent and  Mgnt,1007,NEW Chief Executive,Use Of Transport - Mayoral Car,30015,Transport Recharges,5017,car wash,28/06/2016,113469,5.00,Revenue,Chorley BC Petty Cash,16301
Chorley Borough Council,http://statistics.data.gov.uk/id/local-authority/30UE,Economic Development,1096,NEW Chief Executive,Tools & Equipment - Purchase,40003,"Equipment, Furniture & Materia",5023,box washers,28/06/2016,113469,5.71,Revenue,Chorley BC Petty Cash,16301
Chorley Borough Council,http://statistics.data.gov.uk/id/local-authority/30UE,Unapportionable Central OHeads,1009,NEW Chief Executive,Tools & Equipment - Purchase,40003,"Equipment, Furniture & Materia",5023,serving slice,28/06/2016,113469,6.00,Revenue,Chorley BC Petty Cash,16301
Chorley Borough Council,http://statistics.data.gov.uk/id/local-authority/30UE,Unapportionable Central OHeads,1009,NEW Chief Executive,Refreshments,40036,Catering,5024,milk,28/06/2016,113469,2.00,Revenue,Chorley BC Petty Cash,16301
Chorley Borough Council,http://statistics.data.gov.uk/id/local-authority/30UE,Democratic Represent and  Mgnt,1007,NEW Chief Executive,Tools & Equipment - Purchase,40003,"Equipment, Furniture & Materia",5023,batteries,28/06/2016,113469,8.23,Revenue,Chorley BC Petty Cash,16301
Chorley Borough Council,http://statistics.data.gov.uk/id/local-authority/30UE,Corporate Management,1008,NEW Chief Executive,Miscellaneous Expenses,40200,Miscellaneous Expenses,5034,sundries,28/06/2016,113469,12.91,Revenue,Chorley BC Petty Cash,16301
Chorley Borough Council,http://statistics.data.gov.uk/id/local-authority/30UE,Corporate Management,1008,NEW Chief Executive,Miscellaneous Expenses,40200,Miscellaneous Expenses,5034,sundires,28/06/2016,113469,7.25,Revenue,Chorley BC Petty Cash,16301
Chorley Borough Council,http://statistics.data.gov.uk/id/local-authority/30UE,Elections,1012,NEW Chief Executive,Stationery,40050,"Printing, Stationery & General",5026,card,28/06/2016,113469,1.88,Revenue,Chorley BC Petty Cash,16301
Chorley Borough Council,http://statistics.data.gov.uk/id/local-authority/30UE,Unapportionable Central OHeads,1009,NEW Chief Executive,Cleaning Materials,40019,"Equipment, Furniture & Materia",5023,dishwasher tablets,28/06/2016,113469,16.65,Revenue,Chorley BC Petty Cash,16301
Chorley Borough Council,http://statistics.data.gov.uk/id/local-authority/30UE,Democratic Represent and  Mgnt,1007,NEW Policy & Governance,Processional Routes,40177,Miscellaneous Expenses,5034,Band to play at Mayor`s Civic Sunday parade on 22nd May 2016.,08/06/2016,112799,400.00,Revenue,Chorley Pipe Band,21576
Chorley Borough Council,http://statistics.data.gov.uk/id/local-authority/30UE,Elections,1012,NEW Policy & Governance,Rent/Hire Of Premises,20017,Premises Rents,5007,room hire for polling station 5 May 2016,22/06/2016,113334,250.00,Revenue,Clayton-Le-Woods Community Centre,18526
Chorley Borough Council,http://statistics.data.gov.uk/id/local-authority/30UE,Unapportionable Central OHeads,1009,NEW Business Development & Growth,Planned Maintenance,20006,Repairs Maintenance & Alts,5005,Blanket order for NAME REDACTED works for 2016.,15/06/2016,112910,432.36,Revenue,Corlett Electrical Eng Co Ltd,16271
Chorley Borough Council,http://statistics.data.gov.uk/id/local-authority/30UE,Unapportionable Central OHeads,1009,NEW Business Development & Growth,Planned Maintenance,20006,Repairs Maintenance & Alts,5005,Blanket order for NAME REDACTED works for 2016 (second order).,22/06/2016,113040,"2,031.05",Revenue,Corlett Electrical Eng Co Ltd,16271
Chorley Borough Council,http://statistics.data.gov.uk/id/local-authority/30UE,Unapportionable Central OHeads,1009,NEW Business Development & Growth,Planned Maintenance,20006,Repairs Maintenance & Alts,5005,Blanket order for NAME REDACTED works for 2016.,17/06/2016,113064,977.00,Revenue,Corlett Electrical Eng Co Ltd,16271
Chorley Borough Council,http://statistics.data.gov.uk/id/local-authority/30UE,Unapportionable Central OHeads,1009,NEW Business Development & Growth,Planned Maintenance,20006,Repairs Maintenance & Alts,5005,Blanket order for NAME REDACTED works for 2016 (second order).,22/06/2016,113071,304.29,Revenue,Corlett Electrical Eng Co Ltd,16271
Chorley Borough Council,http://statistics.data.gov.uk/id/local-authority/30UE,Central Support Services,1009,NEW Customer & Digital,Computer Equipment-Purchase,40098,Communication and Computing,5028,Chorley Market Office - new supply for MF900 T&A Proximity,22/06/2016,113098,160.50,Revenue,Corlett Electrical Eng Co Ltd,16271
Chorley Borough Council,http://statistics.data.gov.uk/id/local-authority/30UE,Central Support Services,1009,NEW Customer & Digital,Computer Equipment-Purchase,40098,Communication and Computing,5028,Bengal Street - new supply for MF900 T&A Proximity,22/06/2016,113098,180.50,Revenue,Corlett Electrical Eng Co Ltd,16271
Chorley Borough Council,http://statistics.data.gov.uk/id/local-authority/30UE,Unapportionable Central OHeads,1009,NEW Business Development & Growth,General Repairs - Reactive,20004,Repairs Maintenance & Alts,5005,April,17/06/2016,113141,255.61,Revenue,Corona Energy Retail 2 Ltd,67249
Chorley Borough Council,http://statistics.data.gov.uk/id/local-authority/30UE,Democratic Represent and  Mgnt,1007,NEW Policy & Governance,Other Contributions,40145,Grants and Subscriptions,5031,grant,08/06/2016,112831,"1,000.00",Revenue,Crossroads Care North West,53288
Chorley Borough Council,http://statistics.data.gov.uk/id/local-authority/30UE,Democratic Represent and  Mgnt,1007,NEW Policy & Governance,Grants To Other Organisations,40127,Grants and Subscriptions,5031,grant,15/06/2016,113085,250.00,Revenue,Croston Village Festivities Group,59024
Chorley Borough Council,http://statistics.data.gov.uk/id/local-authority/30UE,Democratic Represent and  Mgnt,1007,NEW Policy & Governance,Other Contributions,40145,Grants and Subscriptions,5031,grant,08/06/2016,112832,"1,000.00",Revenue,Cuerden Valley Park Trust,20574
Chorley Borough Council,http://statistics.data.gov.uk/id/local-authority/30UE,General Government Grants,,NEW Policy & Governance,Revenue Support Grant,69000,Income not in NCOS,,revenue support grant,09/06/2016,112812,"-123,317.00",Revenue,Department of Communities and Local Government,16280
Chorley Borough Council,http://statistics.data.gov.uk/id/local-authority/30UE,Collection Fund Revenue Accoun,,NEW Policy & Governance,NNDR Central Share,2034,Precepts & Collection Fund,Precept,central sahre,09/06/2016,112812,"1,309,490.00",Revenue,Department of Communities and Local Government,16280
Chorley Borough Council,http://statistics.data.gov.uk/id/local-authority/30UE,Collection Fund Revenue Accoun,,NEW Policy & Governance,NNDR Central Share,2034,Precepts & Collection Fund,Precept,surplus fund,09/06/2016,112812,"5,474.00",Revenue,Department of Communities and Local Government,16280
Chorley Borough Council,http://statistics.data.gov.uk/id/local-authority/30UE,Business Support,1095,NEW Business Development & Growth,Miscellaneous Expenses,40200,Miscellaneous Expenses,5034,SIB,15/06/2016,113073,250.00,Revenue,NAME REDACTED,76060
Chorley Borough Council,http://statistics.data.gov.uk/id/local-authority/30UE,Democratic Represent and  Mgnt,1007,NEW Policy & Governance,Other Contributions,40145,Grants and Subscriptions,5031,grant,08/06/2016,112833,"3,000.00",Revenue,Derian House Childrens` Hospice,18881
Chorley Borough Council,http://statistics.data.gov.uk/id/local-authority/30UE,Business Support,1095,NEW Business Development & Growth,Grants To Other Organisations,40127,Grants and Subscriptions,5031,grant,03/06/2016,112663,"1,708.50",Revenue,Diane Gunning of Ebb and Flo Bookshop,59017
Chorley Borough Council,http://statistics.data.gov.uk/id/local-authority/30UE,Service Management & Support,1009,NEW Customer & Digital,Tools & Equipment - Maintenance,40005,"Equipment, Furniture & Materia",5023,Supply items as on delivery note number 019876,22/06/2016,113154,140.41,Revenue,NAME REDACTED,17138
Chorley Borough Council,http://statistics.data.gov.uk/id/local-authority/30UE,Service Management & Support,1009,NEW Customer & Digital,Tools & Equipment - Maintenance,40005,"Equipment, Furniture & Materia",5023,Supply items as on delivery note number 019987,22/06/2016,113154,42.98,Revenue,NAME REDACTED,17138
Chorley Borough Council,http://statistics.data.gov.uk/id/local-authority/30UE,Service Management & Support,1009,NEW Customer & Digital,Tools & Equipment - Maintenance,40005,"Equipment, Furniture & Materia",5023,Supply items as on delivery note number 019723,22/06/2016,113154,67.00,Revenue,NAME REDACTED,17138
Chorley Borough Council,http://statistics.data.gov.uk/id/local-authority/30UE,Service Management & Support,1009,NEW Customer & Digital,Tools & Equipment - Maintenance,40005,"Equipment, Furniture & Materia",5023,Supply items as on delivery note number 019706,22/06/2016,113154,72.50,Revenue,NAME REDACTED,17138
Chorley Borough Council,http://statistics.data.gov.uk/id/local-authority/30UE,Capital,Capital,NEW Customer & Digital,Other Contractor,3012,Capital Expenditure,Capital,Provision of Project Officer services associated with Ranglett`s Rec. Ground Veterans Allotment Plot.,01/06/2016,112674,"1,084.70",Capital,Dig In North West CIC,74336
Chorley Borough Council,http://statistics.data.gov.uk/id/local-authority/30UE,Economic Development,1096,NEW Business Development & Growth,Miscellaneous Expenses,40200,Miscellaneous Expenses,5034,For 2 x business workshops in June and October 2016,22/06/2016,113344,250.00,Revenue,DigiEnable,57999
Chorley Borough Council,http://statistics.data.gov.uk/id/local-authority/30UE,Central Support Services,1009,NEW Customer & Digital,Computer Software-Maintenance,40107,Communication and Computing,5028,"ProPrint Annual Licence and Maintenance1 April 2016 to 31 March 2017 1 x ProPrint Class B Licence (1,728.58) 1 x ProPrint ",22/06/2016,112904,"2,500.00",Revenue,Document Output Solutions UK Ltd,21304
Chorley Borough Council,http://statistics.data.gov.uk/id/local-authority/30UE,Central Support Services,1009,NEW Customer & Digital,Computer Software-Maintenance,40107,Communication and Computing,5028,to be credited,26/05/2016,112923,"3,349.00",Revenue,Document Output Solutions UK Ltd,21304
Chorley Borough Council,http://statistics.data.gov.uk/id/local-authority/30UE,Economic Development,1096,NEW Business Development & Growth,Miscellaneous Expenses,40200,Miscellaneous Expenses,5034,For attendance at Business Awards June 2016,22/06/2016,113338,450.00,Revenue,Downtown in Business Ltd,76078
Chorley Borough Council,http://statistics.data.gov.uk/id/local-authority/30UE,Unapportionable Central OHeads,1009,NEW Business Development & Growth,General Repairs - Reactive,20004,Repairs Maintenance & Alts,5005,Blanket order for REACTIVE works.,15/06/2016,112727,643.00,Revenue,Drain Alert Ltd,16961
Chorley Borough Council,http://statistics.data.gov.uk/id/local-authority/30UE,Unapportionable Central OHeads,1009,NEW Business Development & Growth,General Repairs - Reactive,20004,Repairs Maintenance & Alts,5005,Blanket order for REACTIVE works.,15/06/2016,112728,342.00,Revenue,Drain Alert Ltd,16961
Chorley Borough Council,http://statistics.data.gov.uk/id/local-authority/30UE,Business Support,1095,NEW Business Development & Growth,Miscellaneous Expenses,40200,Miscellaneous Expenses,5034,professional charges Digital Office part capital and revenue projects State aid and procurement Advice,10/06/2016,113016,"3,500.00",Revenue,DWF Law,75359
Chorley Borough Council,http://statistics.data.gov.uk/id/local-authority/30UE,Business Support,1095,NEW Business Development & Growth,Miscellaneous Expenses,40200,Miscellaneous Expenses,5034,price over the original quote for professional charges Digital Office part capital and revenue projects State aid and procurement ,10/06/2016,113016,"2,351.50",Revenue,DWF Law,75359
Chorley Borough Council,http://statistics.data.gov.uk/id/local-authority/30UE,Democratic Represent and  Mgnt,1007,NEW Customer & Digital,Supplies-Grounds Maintenance,40025,"Equipment, Furniture & Materia",5023,Willow rifles,15/06/2016,112916,"2,160.00",Revenue,Eco-Arts,21984
Chorley Borough Council,http://statistics.data.gov.uk/id/local-authority/30UE,Corporate Management,1008,NEW Customer & Digital,Promotional Expenses,40159,Miscellaneous Expenses,5034,Summer Willow figures for the Market Walk,22/06/2016,113175,750.00,Revenue,Eco-Arts,21984
Chorley Borough Council,http://statistics.data.gov.uk/id/local-authority/30UE,Central Support Services,1009,NEW Customer & Digital,Mobile Phones,40086,Communication and Computing,5028,April 16 charges,03/06/2016,112716,509.63,Revenue,EE - Orange,16486
Chorley Borough Council,http://statistics.data.gov.uk/id/local-authority/30UE,Central Support Services,1009,NEW Customer & Digital,Mobile Phones,40086,Communication and Computing,5028,May 16 charges,03/06/2016,112717,522.75,Revenue,EE - Orange,16486
Chorley Borough Council,http://statistics.data.gov.uk/id/local-authority/30UE,Central Support Services,1009,NEW Customer & Digital,Mobile Phones,40086,Communication and Computing,5028,mobile  phone,22/06/2016,113315,573.44,Revenue,EE - Orange,16486
Chorley Borough Council,http://statistics.data.gov.uk/id/local-authority/30UE,Central Support Services,1009,NEW Customer & Digital,Mobile Phones,40086,Communication and Computing,5028,March 16 charges,03/06/2016,112714,"1,496.80",Revenue,EE LIMITED,63366
Chorley Borough Council,http://statistics.data.gov.uk/id/local-authority/30UE,Central Support Services,1009,NEW Customer & Digital,Mobile Phones,40086,Communication and Computing,5028,April 16 charges,03/06/2016,112715,"1,532.42",Revenue,EE LIMITED,63366
Chorley Borough Council,http://statistics.data.gov.uk/id/local-authority/30UE,Central Support Services,1009,NEW Customer & Digital,Mobile Phones,40086,Communication and Computing,5028,mobile  phone,03/06/2016,112715,0.21,Revenue,EE LIMITED,63366
Chorley Borough Council,http://statistics.data.gov.uk/id/local-authority/30UE,Corporate Management,1008,NEW Customer & Digital,Other Contributions,40145,Grants and Subscriptions,5031,PLRG-ADDRESS REDACTED,15/06/2016,113053,"5,000.00",Revenue,NAME REDACTED,73906
Chorley Borough Council,http://statistics.data.gov.uk/id/local-authority/30UE,Capital,Capital,NEW Customer & Digital,Main Contractor,3007,Capital Expenditure,Capital,Civil engineering and landscaping works at Rangletts Recreation Ground,01/06/2016,112616,"46,105.11",Capital,English Landscapes Ltd,67982
Chorley Borough Council,http://statistics.data.gov.uk/id/local-authority/30UE,Democratic Represent and  Mgnt,1007,NEW Early Intervention,Rent/Hire Of Premises,20017,Premises Rents,5007,"Duxbury Coach House Rent - 10,625 per qtr To be invoiced quarterly Q1: 25/03/16 - 23/06/16 Q2: 24/06/16 - 23/09/16 Q2: ",08/06/2016,112954,"10,625.00",Revenue,European Settled Estates Plc,16495
Chorley Borough Council,http://statistics.data.gov.uk/id/local-authority/30UE,Democratic Represent and  Mgnt,1007,NEW Early Intervention,Rent/Hire Of Premises,20017,Premises Rents,5007,"Service Charge - 1,125 per qtr invoiced quarterly Q1: 25/03/16 - 23/06/16 Q2: 24/06/16 - 23/09/16 Q2: 24/09/16 - 23/12/16 Q4: ",08/06/2016,112954,"1,125.00",Revenue,European Settled Estates Plc,16495
Chorley Borough Council,http://statistics.data.gov.uk/id/local-authority/30UE,Service Management & Support,1009,NEW Customer & Digital,Tools & Equipment - Purchase,40003,"Equipment, Furniture & Materia",5023,Supply 1 x Lawnflite T450 Tiller as per price quoted from NAME REDACTED to be delivered to Bengal St depot with operator,08/06/2016,112687,"1,165.00",Revenue,F R Sharrock Ltd,18091
Chorley Borough Council,http://statistics.data.gov.uk/id/local-authority/30UE,Service Management & Support,1009,NEW Customer & Digital,Supplies - Workshop,40246,"Equipment, Furniture & Materia",5023,Supply items as on Pro-forma invoice number 112511 already supplied,10/06/2016,112955,"1,533.83",Revenue,F R Sharrock Ltd,18091
Chorley Borough Council,http://statistics.data.gov.uk/id/local-authority/30UE,Service Management & Support,1009,NEW Customer & Digital,Supplies - Workshop,40246,"Equipment, Furniture & Materia",5023,Supply items as on Pro-Forma invoice number 113017 already supplied,10/06/2016,112963,738.42,Revenue,F R Sharrock Ltd,18091
Chorley Borough Council,http://statistics.data.gov.uk/id/local-authority/30UE,Democratic Represent and  Mgnt,1007,NEW Customer & Digital,Supplies-Grounds Maintenance,40025,"Equipment, Furniture & Materia",5023,Hire of marquees and infrastructure for Chorley Flower Show 2016,15/06/2016,112800,"16,988.19",Revenue,Field and Lawn Ltd,74977
Chorley Borough Council,http://statistics.data.gov.uk/id/local-authority/30UE,Homelessness,1075,NEW Early Intervention,Fixtures & Fittings - Repair/Mtnce,20028,Fixtures and Fittings,5010,"York Wooden Dining Chair with Vinyl Beige Seat, Beech .",08/06/2016,112881,302.48,Revenue,Furniture Resource Centre Ltd,22085
Chorley Borough Council,http://statistics.data.gov.uk/id/local-authority/30UE,Capital,Capital,NEW Early Intervention,Grants,3002,Capital Expenditure,Capital,ADDRESS REDACTED,29/06/2016,113080,"3,580.00",Capital,G McGavock Ltd,16921
Chorley Borough Council,http://statistics.data.gov.uk/id/local-authority/30UE,Unapportionable Central OHeads,1009,NEW Policy & Governance,Fixtures & Fittings - Repair/Mtnce,20028,Fixtures and Fittings,5010,"Deep clean and sanitise carpeted areas to ground floor, to include 2 x open plan customer areas, 1 x small interview room, public",29/06/2016,113363,656.00,Revenue,Garstang Cleaning Specialists Ltd,75669
Chorley Borough Council,http://statistics.data.gov.uk/id/local-authority/30UE,Economic Development,1096,NEW Business Development & Growth,Tools & Equipment - Purchase,40003,"Equipment, Furniture & Materia",5023,"3 x Topsy 2000 bins in red, keyless opening, metal liner, Glasdon jubilee ashtray in gun metal grey, No Fixings Bins for Chorley",08/06/2016,112883,625.05,Revenue,Glasdon UK Ltd,17505
Chorley Borough Council,http://statistics.data.gov.uk/id/local-authority/30UE,Corporate Management,1008,NEW Policy & Governance,External Audit,40064,Services,5027,2015-16 External Audit Fee,17/06/2016,113042,"11,313.75",Revenue,Grant Thornton UK LLP,57322
Chorley Borough Council,http://statistics.data.gov.uk/id/local-authority/30UE,Unapportionable Central OHeads,1009,NEW Policy & Governance,HR Approved Training Expenses,17001,Indirect Employee Expenses,5002,Full Day Training Course - Personal Impact on Thursday 21 April 2016,08/06/2016,112872,650.00,Revenue,Greenfield Training Consultants,21161
Chorley Borough Council,http://statistics.data.gov.uk/id/local-authority/30UE,Unapportionable Central OHeads,1009,NEW Policy & Governance,HR Approved Training Expenses,17001,Indirect Employee Expenses,5002,2 x Half Day Workshops - Time Management being held on the mornings of: 19 May and 16 August,08/06/2016,112873,450.00,Revenue,Greenfield Training Consultants,21161
Chorley Borough Council,http://statistics.data.gov.uk/id/local-authority/30UE,Service Management & Support,1009,NEW Customer & Digital,Protective Clothing,40040,"Clothing, Uniforms and Laundry",5025,ORN Vulture Ballistic Trouser.  Colour - Navy.  Waist Size = 36``.  Product Code = 2900-15,08/06/2016,112684,97.50,Revenue,Guardsman Ltd,22411
Chorley Borough Council,http://statistics.data.gov.uk/id/local-authority/30UE,Service Management & Support,1009,NEW Customer & Digital,Protective Clothing,40040,"Clothing, Uniforms and Laundry",5025,ORN Vulture Ballistic Trouser.  Waist 38``.  Colour - Navy.  Product Code = 2900 15,08/06/2016,112684,97.50,Revenue,Guardsman Ltd,22411
Chorley Borough Council,http://statistics.data.gov.uk/id/local-authority/30UE,Service Management & Support,1009,NEW Customer & Digital,Protective Clothing,40040,"Clothing, Uniforms and Laundry",5025,ORN Vulture Ballistic Trouser.  Waist 40``.  Colour - Navy.  Product Code = 2900 15,08/06/2016,112684,97.50,Revenue,Guardsman Ltd,22411
Chorley Borough Council,http://statistics.data.gov.uk/id/local-authority/30UE,Unapportionable Central OHeads,1009,NEW Policy & Governance,IT Software - Annual Licences,40101,Communication and Computing,5028,Cheqflow2 software support from 1st April 16 to 31st March 17,17/06/2016,113102,615.00,Revenue,Hague Computer Supplies Ltd,56014
Chorley Borough Council,http://statistics.data.gov.uk/id/local-authority/30UE,Service Management & Support,1009,NEW Customer & Digital,Publicity - Advertising,40157,Miscellaneous Expenses,5034,117593 Yarrow Valley General Information Leaflet and Quote no 117594  History Trail Leaflet reprint. FAO NAME REDACTED,08/06/2016,112801,452.00,Revenue,Haslam PrintersLtd,21777
Chorley Borough Council,http://statistics.data.gov.uk/id/local-authority/30UE,Business Support,1095,NEW Business Development & Growth,Grants To Other Organisations,40127,Grants and Subscriptions,5031,subsidy 3,15/06/2016,113075,"1,000.00",Revenue,Havana Brasserie Ltd,72660
Chorley Borough Council,http://statistics.data.gov.uk/id/local-authority/30UE,Democratic Represent and  Mgnt,1007,NEW Policy & Governance,Other Contributions,40145,Grants and Subscriptions,5031,grant,08/06/2016,112835,"3,500.00",Revenue,Home-Start Central Lancashire Ltd,20585
Chorley Borough Council,http://statistics.data.gov.uk/id/local-authority/30UE,Community Development,1097,NEW Policy & Governance,Core Funding Grants,40133,Grants and Subscriptions,5031,Delivery of a family support service in Chorley - Year three 1st instalment,24/06/2016,113345,"11,000.00",Revenue,Home-Start Central Lancashire Ltd,20585
Chorley Borough Council,http://statistics.data.gov.uk/id/local-authority/30UE,Unapportionable Central OHeads,1009,NEW Policy & Governance,Chorley B.C. Souvenirs,40028,"Equipment, Furniture & Materia",5023,200 crest lapel badges.,24/06/2016,113356,445.00,Revenue,House of Logos Ltd,55081
Chorley Borough Council,http://statistics.data.gov.uk/id/local-authority/30UE,Unapportionable Central OHeads,1009,NEW Policy & Governance,HR Approved Training Expenses,17001,Indirect Employee Expenses,5002,CDM Training - 7th June 2016,22/06/2016,113248,"3,995.00",Revenue,HSL Training,75665
Chorley Borough Council,http://statistics.data.gov.uk/id/local-authority/30UE,Capital,Capital,NEW Business Development & Growth,Purchase Money,3027,Capital Expenditure,Capital,Surrender of lease,22/06/2016,113335,"19,000.00",Capital,HSS Hire Service Group Limited,76069
Chorley Borough Council,http://statistics.data.gov.uk/id/local-authority/30UE,Central Support Services,1009,NEW Customer & Digital,Consultants` Fees,40077,Services,5027,Chorley Training & Consultancy 200416 Training and Consultancy Services for Uniform and Total Land Charges. 1.Uniform,24/06/2016,111958,"3,000.00",Revenue,IDOX Software Limited,17542
Chorley Borough Council,http://statistics.data.gov.uk/id/local-authority/30UE,Economic Development,1096,NEW Policy & Governance,Car Leasing Payment,14100,Direct Employee Expenses,5001,NAME REDACTED,10/06/2016,112942,"3,926.26",Revenue,Inchcape Fleet Solutions Ltd,52543
Chorley Borough Council,http://statistics.data.gov.uk/id/local-authority/30UE,Economic Development,1096,NEW Policy & Governance,Car Leasing Payment,14100,Direct Employee Expenses,5001,Car Lease Payment,10/06/2016,112942,331.00,Revenue,Inchcape Fleet Solutions Ltd,52543
Chorley Borough Council,http://statistics.data.gov.uk/id/local-authority/30UE,Control Accounts,Control,NEW Policy & Governance,Manual Control Account,1,Balance Sheet,Balance,Balance Sheet,10/06/2016,112942,-331.00,Revenue,Inchcape Fleet Solutions Ltd,52543
Chorley Borough Council,http://statistics.data.gov.uk/id/local-authority/30UE,Control Accounts,Control,NEW Policy & Governance,Manual Control Account,1,Balance Sheet,Balance,Balance Sheet,10/06/2016,112503,621.00,Revenue,Inland Revenue 065py00102078,17445
Chorley Borough Council,http://statistics.data.gov.uk/id/local-authority/30UE,Business Support,1095,NEW Business Development & Growth,Cleaning/Attendants' Services,20041,Cleaning and Domestic Supplies,5012,To provide daily cleaning services to Market Walk Shopping Centre April 2016 - March 2017 @ 4310.21 per month,01/06/2016,112723,"4,310.21",Revenue,Interserve,70619
Chorley Borough Council,http://statistics.data.gov.uk/id/local-authority/30UE,Community Development,1097,NEW Business Development & Growth,Rent/Hire Of Premises,20017,Premises Rents,5007,"Rent for ADDRESS REDACTED, Chorley for 2016/2017.",24/06/2016,113195,"7,218.75",Revenue,J R Keys,17124
Chorley Borough Council,http://statistics.data.gov.uk/id/local-authority/30UE,Business Support,1095,NEW Business Development & Growth,Refuse Collection,20037,Cleaning and Domestic Supplies,5012,To supply Waste Compactor services to MWSC HD260TR Serial No:  02601707021135 April 2016 - March 2017,03/06/2016,112759,270.00,Revenue,J&H Rentals Limited,70699
Chorley Borough Council,http://statistics.data.gov.uk/id/local-authority/30UE,Unapportionable Central OHeads,1009,NEW Policy & Governance,HR Recruitment - Advertising,15300,Indirect Employee Expenses,5002,Advertising for Director Post,17/06/2016,113181,300.00,Revenue,JGP Resourcing Ltd,50012
Chorley Borough Council,http://statistics.data.gov.uk/id/local-authority/30UE,Service Management & Support,1009,NEW Customer & Digital,Supplies-Grounds Maintenance,40025,"Equipment, Furniture & Materia",5023,"12 - 12` x 6`` x 2`` board 18 - 1.1m x 6`` x 2` 144 - 1,2m x 6`` x 2`` (Cut to size) 36 - 5` 6`` posts round",08/06/2016,112879,534.83,Revenue,John H Mayor & Sons Ltd,16635
Chorley Borough Council,http://statistics.data.gov.uk/id/local-authority/30UE,Development Control,1091,NEW Customer & Digital,Statutory Notices,40160,Miscellaneous Expenses,5034,Planning Public Notices to appear in the Chorley Guardian April 2016 to March 2017,17/06/2016,112689,560.34,Revenue,Johnston Publishing Ltd,20072
Chorley Borough Council,http://statistics.data.gov.uk/id/local-authority/30UE,Development Control,1091,NEW Customer & Digital,Statutory Notices,40160,Miscellaneous Expenses,5034,Planning Public Notices to appear in the Chorley Guardian April 2016 to March 2017,03/06/2016,112869,475.44,Revenue,Johnston Publishing Ltd,20072
Chorley Borough Council,http://statistics.data.gov.uk/id/local-authority/30UE,Development Control,1091,NEW Customer & Digital,Statutory Notices,40160,Miscellaneous Expenses,5034,Planning Public Notices to appear in the Chorley Guardian April 2016 to March 2017,17/06/2016,112913,509.40,Revenue,Johnston Publishing Ltd,20072
Chorley Borough Council,http://statistics.data.gov.uk/id/local-authority/30UE,Corporate Management,1008,NEW Customer & Digital,Other Contributions,40145,Grants and Subscriptions,5031,ADDRESS REDACTED,29/06/2016,113479,"4,184.00",Revenue,NAME REDACTED,73750
Chorley Borough Council,http://statistics.data.gov.uk/id/local-authority/30UE,Homelessness,1075,NEW Early Intervention,External Contractor,40198,Miscellaneous Expenses,5034,Provision of Housing Drop-In,29/06/2016,113332,"3,750.00",Revenue,Key,61252
Chorley Borough Council,http://statistics.data.gov.uk/id/local-authority/30UE,Capital,Capital,NEW Early Intervention,Grants,3002,Capital Expenditure,Capital,ADDRESS REDACTED,29/06/2016,112300,"2,564.00",Capital,Lancashire County Council,17758
Chorley Borough Council,http://statistics.data.gov.uk/id/local-authority/30UE,Capital,Capital,NEW Early Intervention,Grants,3002,Capital Expenditure,Capital,Melling,29/06/2016,112301,999.00,Capital,Lancashire County Council,17758
Chorley Borough Council,http://statistics.data.gov.uk/id/local-authority/30UE,Development Control,1091,NEW Customer & Digital,Consultants` Fees,40077,Services,5027,Agricultural Planning Consultations,29/06/2016,112457,"1,260.00",Revenue,Lancashire County Council,17758
Chorley Borough Council,http://statistics.data.gov.uk/id/local-authority/30UE,Capital,Capital,NEW Early Intervention,Grants,3002,Capital Expenditure,Capital,ADDRESS REDACTED,29/06/2016,112623,"11,382.00",Capital,Lancashire County Council,17758
Chorley Borough Council,http://statistics.data.gov.uk/id/local-authority/30UE,Service Management & Support,1009,NEW Customer & Digital,Training Course Fees,17010,Indirect Employee Expenses,5002,Driver CPC training for 11 Chorley Council as per invoice from NAME REDACTED carried out at Cuereden Mill depot,29/06/2016,112685,600.00,Revenue,Lancashire County Council,17758
Chorley Borough Council,http://statistics.data.gov.uk/id/local-authority/30UE,Precepts and Collection Fund,Precepts,NEW Policy & Governance,LCC Precept,2009,Precepts & Collection Fund,Precept,council tax,09/06/2016,112819,"4,181,662.00",Revenue,Lancashire County Council,18386
Chorley Borough Council,http://statistics.data.gov.uk/id/local-authority/30UE,Collection Fund Revenue Accoun,,NEW Policy & Governance,NNDR County Share,2036,Precepts & Collection Fund,Precept,business rates,09/06/2016,112819,"262,993.00",Revenue,Lancashire County Council,18386
Chorley Borough Council,http://statistics.data.gov.uk/id/local-authority/30UE,Capital,Capital,NEW Early Intervention,Grants,3002,Capital Expenditure,Capital,ADDRESS REDACTED,29/06/2016,113077,"4,275.00",Capital,Lancashire County Council,17758
Chorley Borough Council,http://statistics.data.gov.uk/id/local-authority/30UE,Capital,Capital,NEW Early Intervention,Grants,3002,Capital Expenditure,Capital,ADDRESS REDACTED,29/06/2016,113083,"3,375.00",Capital,Lancashire County Council,17758
Chorley Borough Council,http://statistics.data.gov.uk/id/local-authority/30UE,Corporate Management,1008,NEW Policy & Governance,Other Fees,40212,Miscellaneous Expenses,5034,Provision of meals on wheels up to 15 May 2016,15/06/2016,112975,916.91,Revenue,Lancashire Fayre,62967
Chorley Borough Council,http://statistics.data.gov.uk/id/local-authority/30UE,Corporate Management,1008,NEW Policy & Governance,Other Fees,40212,Miscellaneous Expenses,5034,Subsidy for the provision of a meals on wheels service in Chorley up to 12 June 2016,29/06/2016,113271,965.39,Revenue,Lancashire Fayre,62967
Chorley Borough Council,http://statistics.data.gov.uk/id/local-authority/30UE,Corporate Management,1008,NEW Customer & Digital,Clinical Waste Collection,50007,Private Contractors,5042,Disposal of Clinical waste from Chorley Households. April 2015 to March 2016 yellow bag collections approx 550 per month..,08/06/2016,112747,"1,101.43",Revenue,Lancashire Teaching Hospitals NHS FT,19003
Chorley Borough Council,http://statistics.data.gov.uk/id/local-authority/30UE,Precepts and Collection Fund,Precepts,NEW Policy & Governance,LCFA Precept,2011,Precepts & Collection Fund,Precept,council tax,09/06/2016,112817,"233,211.00",Revenue,Lancs Combined Fire Authority,17768
Chorley Borough Council,http://statistics.data.gov.uk/id/local-authority/30UE,Collection Fund Revenue Accoun,,NEW Policy & Governance,NNDR Fire Share,2037,Precepts & Collection Fund,Precept,business rates,09/06/2016,112817,"29,222.00",Revenue,Lancs Combined Fire Authority,17768
Chorley Borough Council,http://statistics.data.gov.uk/id/local-authority/30UE,Unapportionable Central OHeads,1009,NEW Policy & Governance,General Subscriptions,40146,Grants and Subscriptions,5031,LLG annual membership 01.04.16 - 31.03.17,29/06/2016,113476,300.00,Revenue,Lawyers in Local Government Ltd,60338
Chorley Borough Council,http://statistics.data.gov.uk/id/local-authority/30UE,Corporate Management,1008,NEW Customer & Digital,Other Contributions,40145,Grants and Subscriptions,5031,grant,22/06/2016,113290,"5,000.00",Revenue,NAME REDACTED,73920
Chorley Borough Council,http://statistics.data.gov.uk/id/local-authority/30UE,Central Support Services,1009,NEW Early Intervention,Miscellaneous Expenses,40200,Miscellaneous Expenses,5034,Delivery of Rock Climbing Wall activity on Monday 21st March,08/06/2016,112898,500.00,Revenue,Lister Logic LTD,22431
Chorley Borough Council,http://statistics.data.gov.uk/id/local-authority/30UE,Unapportionable Central OHeads,1009,NEW Policy & Governance,Promotional Expenses,40159,Miscellaneous Expenses,5034,Summer events advert,08/06/2016,112875,280.00,Revenue,Loop Publishing Ltd,18770
Chorley Borough Council,http://statistics.data.gov.uk/id/local-authority/30UE,Democratic Represent and  Mgnt,1007,NEW Business Development & Growth,Maintenance/Nature Reserves,20045,Grounds Maintenance Costs,5013,2yrs cover,22/06/2016,113291,384.00,Revenue,Lower Burgh Meadows conservation Group,22316
Chorley Borough Council,http://statistics.data.gov.uk/id/local-authority/30UE,Capital,Capital,NEW Early Intervention,Grants,3002,Capital Expenditure,Capital,ADDRESS REDACTED,29/06/2016,113078,"2,810.00",Capital,M.J Park Building Contractors,20367
Chorley Borough Council,http://statistics.data.gov.uk/id/local-authority/30UE,Central Support Services,1009,NEW Early Intervention,Community Develop Initiatives,40185,Miscellaneous Expenses,5034,38 entries to Blackpool Ballroom as part of Rural Lunch Clubs celebration booked by NAME REDACTED,08/06/2016,112901,585.00,Revenue,MAOL Call Centre,75354
Chorley Borough Council,http://statistics.data.gov.uk/id/local-authority/30UE,Democratic Represent and  Mgnt,1007,NEW Policy & Governance,Supplies-Grounds Maintenance,40025,"Equipment, Furniture & Materia",5023,Radio advertising for the Chorley Flower Show 2016,17/06/2016,112261,"3,800.00",Revenue,Marvel At Everything Ltd,70955
Chorley Borough Council,http://statistics.data.gov.uk/id/local-authority/30UE,Unapportionable Central OHeads,1009,NEW Policy & Governance,Agency Staff,13000,Direct Employee Expenses,5001,AGENCY STAFF,08/06/2016,112768,345.11,Revenue,Matrix SCM Ltd,22128
Chorley Borough Council,http://statistics.data.gov.uk/id/local-authority/30UE,Unapportionable Central OHeads,1009,NEW Policy & Governance,Agency Staff,13000,Direct Employee Expenses,5001,AGENCY STAFF,08/06/2016,112768,723.55,Revenue,Matrix SCM Ltd,22128
Chorley Borough Council,http://statistics.data.gov.uk/id/local-authority/30UE,Unapportionable Central OHeads,1009,NEW Policy & Governance,Agency Staff,13000,Direct Employee Expenses,5001,AGENCY STAFF,08/06/2016,112938,431.40,Revenue,Matrix SCM Ltd,22128
Chorley Borough Council,http://statistics.data.gov.uk/id/local-authority/30UE,Unapportionable Central OHeads,1009,NEW Policy & Governance,Agency Staff,13000,Direct Employee Expenses,5001,AGENCY STAFF,08/06/2016,112938,723.55,Revenue,Matrix SCM Ltd,22128
Chorley Borough Council,http://statistics.data.gov.uk/id/local-authority/30UE,Unapportionable Central OHeads,1009,NEW Policy & Governance,Agency Staff,13000,Direct Employee Expenses,5001,AGENCY STAFF,22/06/2016,113316,431.40,Revenue,Matrix SCM Ltd,22128
Chorley Borough Council,http://statistics.data.gov.uk/id/local-authority/30UE,Unapportionable Central OHeads,1009,NEW Policy & Governance,Agency Staff,13000,Direct Employee Expenses,5001,AGENCY STAFF,22/06/2016,113316,144.71,Revenue,Matrix SCM Ltd,22128
Chorley Borough Council,http://statistics.data.gov.uk/id/local-authority/30UE,Unapportionable Central OHeads,1009,NEW Policy & Governance,Agency Staff,13000,Direct Employee Expenses,5001,AGENCY STAFF,22/06/2016,113317,345.12,Revenue,Matrix SCM Ltd,22128
Chorley Borough Council,http://statistics.data.gov.uk/id/local-authority/30UE,Unapportionable Central OHeads,1009,NEW Policy & Governance,Agency Staff,13000,Direct Employee Expenses,5001,AGENCY STAFF,22/06/2016,113317,144.71,Revenue,Matrix SCM Ltd,22128
Chorley Borough Council,http://statistics.data.gov.uk/id/local-authority/30UE,Capital,Capital,NEW Business Development & Growth,Main Contractor,3007,Capital Expenditure,Capital,Sign off of retention on Jubilee Rec Skate Park,29/06/2016,113412,"2,500.00",Capital,Maverick Industries Limited,65524
Chorley Borough Council,http://statistics.data.gov.uk/id/local-authority/30UE,Unapportionable Central OHeads,1009,NEW Business Development & Growth,Planned Maintenance,20006,Repairs Maintenance & Alts,5005,Blanket order for Legionella monitoring for 2016.,15/06/2016,112929,610.00,Revenue,Maxigiene Environmental Services Ltd,67160
Chorley Borough Council,http://statistics.data.gov.uk/id/local-authority/30UE,Unapportionable Central OHeads,1009,NEW Business Development & Growth,Planned Maintenance,20006,Repairs Maintenance & Alts,5005,Blanket order for Legionella monitoring for 2016.,15/06/2016,112930,450.00,Revenue,Maxigiene Environmental Services Ltd,67160
Chorley Borough Council,http://statistics.data.gov.uk/id/local-authority/30UE,Unapportionable Central OHeads,1009,NEW Business Development & Growth,Planned Maintenance,20006,Repairs Maintenance & Alts,5005,Blanket order for Legionella monitoring for 2016.,24/06/2016,113342,"1,647.50",Revenue,Maxigiene Environmental Services Ltd,67160
Chorley Borough Council,http://statistics.data.gov.uk/id/local-authority/30UE,Corporate Management,1008,NEW Customer & Digital,Other Contributions,40145,Grants and Subscriptions,5031,PLRG-208 ADDRESS REDACTED,15/06/2016,113052,"3,800.00",Revenue,NAME REDACTED,74001
Chorley Borough Council,http://statistics.data.gov.uk/id/local-authority/30UE,Democratic Represent and  Mgnt,1007,NEW Customer & Digital,Supplies-Grounds Maintenance,40025,"Equipment, Furniture & Materia",5023,To supply 1 x 20ft blimp digitally printed 2 sides for Chorley Flower Show,22/06/2016,113156,"1,150.50",Revenue,Merlin Inflatables Co Limited,74342
Chorley Borough Council,http://statistics.data.gov.uk/id/local-authority/30UE,Corporate Management,1008,NEW Customer & Digital,Other Contributions,40145,Grants and Subscriptions,5031,ADDRESS REDACTED,22/06/2016,113289,"4,706.00",Revenue,NAME REDACTED,73843
Chorley Borough Council,http://statistics.data.gov.uk/id/local-authority/30UE,Capital,Capital,NEW Early Intervention,Grants,3002,Capital Expenditure,Capital,ADDRESS REDACTED,29/06/2016,113079,"3,899.40",Capital,Mint Northwest Ltd,65607
Chorley Borough Council,http://statistics.data.gov.uk/id/local-authority/30UE,Private Sector HSG Renewal,1073,NEW Early Intervention,External Contractor,40198,Miscellaneous Expenses,5034,ADDRESS REDACTED,10/06/2016,112847,820.00,Revenue,Mobility Care Services,70841
Chorley Borough Council,http://statistics.data.gov.uk/id/local-authority/30UE,Private Sector HSG Renewal,1073,NEW Early Intervention,External Contractor,40198,Miscellaneous Expenses,5034,ADDRESS REDACTED,10/06/2016,112855,460.00,Revenue,Mobility Care Services,70841
Chorley Borough Council,http://statistics.data.gov.uk/id/local-authority/30UE,Private Sector HSG Renewal,1073,NEW Early Intervention,External Contractor,40198,Miscellaneous Expenses,5034,ADDRESS REDACTED,10/06/2016,112857,620.00,Revenue,Mobility Care Services,70841
Chorley Borough Council,http://statistics.data.gov.uk/id/local-authority/30UE,Private Sector HSG Renewal,1073,NEW Early Intervention,External Contractor,40198,Miscellaneous Expenses,5034,ADDRESS REDACTED,10/06/2016,112858,250.00,Revenue,Mobility Care Services,70841
Chorley Borough Council,http://statistics.data.gov.uk/id/local-authority/30UE,Private Sector HSG Renewal,1073,NEW Early Intervention,External Contractor,40198,Miscellaneous Expenses,5034,ADDRESS REDACTED,10/06/2016,112859,250.00,Revenue,Mobility Care Services,70841
Chorley Borough Council,http://statistics.data.gov.uk/id/local-authority/30UE,Private Sector HSG Renewal,1073,NEW Early Intervention,External Contractor,40198,Miscellaneous Expenses,5034,ADDRESS REDACTED,10/06/2016,112861,250.00,Revenue,Mobility Care Services,70841
Chorley Borough Council,http://statistics.data.gov.uk/id/local-authority/30UE,Business Support,1095,NEW Business Development & Growth,Miscellaneous Expenses,40200,Miscellaneous Expenses,5034,sib grant,03/06/2016,112815,250.00,Revenue,NAME REDACTED,75923
Chorley Borough Council,http://statistics.data.gov.uk/id/local-authority/30UE,Business Support,1095,NEW Business Development & Growth,Grants To Other Organisations,40127,Grants and Subscriptions,5031,shop grant,03/06/2016,112662,"8,175.00",Revenue,NAME REDACTED,75760
Chorley Borough Council,http://statistics.data.gov.uk/id/local-authority/30UE,Private Sector HSG Renewal,1073,NEW Early Intervention,Miscellaneous Expenses,40200,Miscellaneous Expenses,5034,Provision of Energy Switching Support Service during May 2016,10/06/2016,112804,"1,200.00",Revenue,NAME REDACTED,65606
Chorley Borough Council,http://statistics.data.gov.uk/id/local-authority/30UE,Corporate Management,1008,NEW Customer & Digital,Other Contributions,40145,Grants and Subscriptions,5031,plrg- ADDRESS REDACTED boilder and drains,15/06/2016,113054,"3,780.00",Revenue,NAME REDACTED,74803
Chorley Borough Council,http://statistics.data.gov.uk/id/local-authority/30UE,Tourism,1039,NEW Policy & Governance,Miscellaneous Expenses,40200,Miscellaneous Expenses,5034,"12,500 x wristbands for the Chorley Flower Show 2016",17/06/2016,113185,"1,475.00",Revenue,Munco International T/A Adband,60837
Chorley Borough Council,http://statistics.data.gov.uk/id/local-authority/30UE,Democratic Represent and  Mgnt,1007,NEW Policy & Governance,Supplies-Grounds Maintenance,40025,"Equipment, Furniture & Materia",5023,"1,250 x A5 Chorley Flower Show 2016 schedule brochures",01/06/2016,111980,395.00,Revenue,N B Colour Print Ltd,17917
Chorley Borough Council,http://statistics.data.gov.uk/id/local-authority/30UE,Central Support Services,1009,NEW Early Intervention,Training Course Fees,17010,Indirect Employee Expenses,5002,"4 places (2 paid places, 2 free places) at 145.00 per paid place for POWERS OF ENTRY, AUDIO RECORDING OF",29/06/2016,112343,290.00,Revenue,Naleo,17911
Chorley Borough Council,http://statistics.data.gov.uk/id/local-authority/30UE,Unapportionable Central OHeads,1009,NEW Customer & Digital,Refuse Collection,20037,Cleaning and Domestic Supplies,5012,7. Provision of trade waste collections for the Town Hall. 2016 / 2017 (6 x 1100 litre bins per week),15/06/2016,112979,252.20,Revenue,Neales Waste Management,17583
Chorley Borough Council,http://statistics.data.gov.uk/id/local-authority/30UE,Unapportionable Central OHeads,1009,NEW Customer & Digital,Refuse Collection,20037,Cleaning and Domestic Supplies,5012,"8. Provision of trade waste collections for the Civic Offices, Union Street, 2016 / 2017 (6 x 1100 litre bins per week)",15/06/2016,112994,252.20,Revenue,Neales Waste Management,17583
Chorley Borough Council,http://statistics.data.gov.uk/id/local-authority/30UE,Business Support,1095,NEW Business Development & Growth,Refuse Collection,20037,Cleaning and Domestic Supplies,5012,Market Walk YARD 1 - General Waste compacted - 35 Cubic Yard Roll On / Roll Off Skip from Compactor,17/06/2016,112998,241.92,Revenue,Neales Waste Management,17583
Chorley Borough Council,http://statistics.data.gov.uk/id/local-authority/30UE,Business Support,1095,NEW Business Development & Growth,Refuse Collection,20037,Cleaning and Domestic Supplies,5012,Market Walk YARD 1 - General Waste Compacted Disposal Costs per tonne (variable depended on weight collected),17/06/2016,112998,"1,648.22",Revenue,Neales Waste Management,17583
Chorley Borough Council,http://statistics.data.gov.uk/id/local-authority/30UE,Business Support,1095,NEW Business Development & Growth,Refuse Collection,20037,Cleaning and Domestic Supplies,5012,Market Walk YARD 1 - Cardboard and plastic film 35 Cubic yard Ro Ro skip,17/06/2016,112998,230.89,Revenue,Neales Waste Management,17583
Chorley Borough Council,http://statistics.data.gov.uk/id/local-authority/30UE,Business Support,1095,NEW Business Development & Growth,Refuse Collection,20037,Cleaning and Domestic Supplies,5012,Market Walk YARD 2 - cardboard and plastic film - 35 cubic yard Ro Ro skip,17/06/2016,112999,100.00,Revenue,Neales Waste Management,17583
Chorley Borough Council,http://statistics.data.gov.uk/id/local-authority/30UE,Business Support,1095,NEW Business Development & Growth,Refuse Collection,20037,Cleaning and Domestic Supplies,5012,Market Walk YARD 2 - General Waste - 8 cubic yard FEL skip,17/06/2016,112999,220.00,Revenue,Neales Waste Management,17583
Chorley Borough Council,http://statistics.data.gov.uk/id/local-authority/30UE,Business Support,1095,NEW Business Development & Growth,Refuse Collection,20037,Cleaning and Domestic Supplies,5012,Market Walk YARD 3 - cardboard and plastic film - 35 cubic yard Ro Ro skip,17/06/2016,113000,200.00,Revenue,Neales Waste Management,17583
Chorley Borough Council,http://statistics.data.gov.uk/id/local-authority/30UE,Business Support,1095,NEW Business Development & Growth,Refuse Collection,20037,Cleaning and Domestic Supplies,5012,Market Walk YARD 3 - general waste - x2  8 cubic yard FEL skip Lift Costs,17/06/2016,113000,440.00,Revenue,Neales Waste Management,17583
Chorley Borough Council,http://statistics.data.gov.uk/id/local-authority/30UE,Unapportionable Central OHeads,1009,NEW Chief Executive,Postages,40082,Communication and Computing,5028,Credit for Franking Machine at Town Hall Offices,29/06/2016,113275,"1,000.00",Revenue,Neopost Ltd RCB Credifon A/C,20009
Chorley Borough Council,http://statistics.data.gov.uk/id/local-authority/30UE,Central Support Services,1009,NEW Policy & Governance,Miscellaneous Expenses,40200,Miscellaneous Expenses,5034,Provision of 2 Neutral Service Team Cars and Personnel for the Chorley Grand Prix,08/06/2016,112870,400.00,Revenue,Neutral Service,69769
Chorley Borough Council,http://statistics.data.gov.uk/id/local-authority/30UE,Corporate Management,1008,NEW Customer & Digital,"Hackney Badges, Plates Etc.",40023,"Equipment, Furniture & Materia",5023,Private Hire door signs to include tamper evident hologram and cover,08/06/2016,112777,296.98,Revenue,NewAuto Ltd t/a MOGO UK,17187
Chorley Borough Council,http://statistics.data.gov.uk/id/local-authority/30UE,Democratic Represent and  Mgnt,1007,NEW Policy & Governance,Publications,40054,"Printing, Stationery & General",5026,Rural Services Network - Service Charge 2016/17,29/06/2016,112013,495.00,Revenue,North Kesteven District Council,65910
Chorley Borough Council,http://statistics.data.gov.uk/id/local-authority/30UE,Unapportionable Central OHeads,1009,NEW Policy & Governance,Laundry,40042,"Clothing, Uniforms and Laundry",5025,Laundry for Lancastrian May 2016,01/06/2016,112170,366.50,Revenue,North West Ironing & Laundry Centre,20450
Chorley Borough Council,http://statistics.data.gov.uk/id/local-authority/30UE,Capital,Capital,NEW Policy & Governance,Main Contractor,3007,Capital Expenditure,Capital,Completed repairs to lead rainwater pipes - front elevation of Astley Hall as per quotation 14th March 2016 - 3792.00,17/06/2016,113187,"3,160.00",Capital,Northwest Lead Limited,76071
Chorley Borough Council,http://statistics.data.gov.uk/id/local-authority/30UE,Business Support,1095,NEW Business Development & Growth,Electricity,20013,Energy Costs,5006,Leigh Arms,17/06/2016,113146,"1,735.38",Revenue,Npower Commercial Gas,16814
Chorley Borough Council,http://statistics.data.gov.uk/id/local-authority/30UE,Business Support,1095,NEW Business Development & Growth,Electricity,20013,Energy Costs,5006,Leigh Arms,17/06/2016,113146,"1,755.62",Revenue,Npower Commercial Gas,16814
Chorley Borough Council,http://statistics.data.gov.uk/id/local-authority/30UE,Business Support,1095,NEW Business Development & Growth,Electricity,20013,Energy Costs,5006,Leigh Arms,17/06/2016,113146,"-1,817.09",Revenue,Npower Commercial Gas,16814
Chorley Borough Council,http://statistics.data.gov.uk/id/local-authority/30UE,Business Support,1095,NEW Business Development & Growth,Electricity,20013,Energy Costs,5006,Energy Costs,17/06/2016,113146,"-1,838.10",Revenue,Npower Commercial Gas,16814
Chorley Borough Council,http://statistics.data.gov.uk/id/local-authority/30UE,Economic Development,1096,NEW Business Development & Growth,Electricity,20013,Energy Costs,5006,Energy Costs,17/06/2016,113146,"3,240.59",Revenue,Npower Commercial Gas,16814
Chorley Borough Council,http://statistics.data.gov.uk/id/local-authority/30UE,Parking Services,1066,NEW Business Development & Growth,External Contractors,50008,Private Contractors,5042,"Provision of off street car park enforcement, cash collection, cash counting facilities and third party bulk cash collections April 16",15/06/2016,112906,"3,596.36",Revenue,NSL Limited,67253
Chorley Borough Council,http://statistics.data.gov.uk/id/local-authority/30UE,Unapportionable Central OHeads,1009,NEW Policy & Governance,HR Approved Training Expenses,17001,Indirect Employee Expenses,5002,Day Training Course - Building Organisational and Personal Resilience Monday 20 June 2016 at Chorley Council Town Hall Offices,24/06/2016,113355,827.59,Revenue,Nwlaeo,17571
Chorley Borough Council,http://statistics.data.gov.uk/id/local-authority/30UE,Parking Services,1066,NEW Business Development & Growth,External Contractors,50008,Private Contractors,5042,Chorley Council - Pay & display parking meters - maintenance renewal UK5-361 22 car park pay & display machines  (various ,17/06/2016,112972,"12,197.31",Revenue,Parkeon Ltd,16279
Chorley Borough Council,http://statistics.data.gov.uk/id/local-authority/30UE,Democratic Represent and  Mgnt,1007,NEW Policy & Governance,Other Contributions,40145,Grants and Subscriptions,5031,grant,29/06/2016,113441,"1,000.00",Revenue,PDSA,76081
Chorley Borough Council,http://statistics.data.gov.uk/id/local-authority/30UE,Democratic Represent and  Mgnt,1007,NEW Policy & Governance,Performing Rights Society Fees,40148,Grants and Subscriptions,5031,Fees for Lancastrian for period of 6th October 2015 to 5th January 2016.,15/06/2016,112978,673.11,Revenue,Performing Right Society Ltd,19909
Chorley Borough Council,http://statistics.data.gov.uk/id/local-authority/30UE,Democratic Represent and  Mgnt,1007,NEW Policy & Governance,Performing Rights Society Fees,40148,Grants and Subscriptions,5031,Fees for period of 6th Jan 2016 to 5 April 2016.,15/06/2016,112983,287.73,Revenue,Performing Right Society Ltd,19909
Chorley Borough Council,http://statistics.data.gov.uk/id/local-authority/30UE,Central Support Services,1009,NEW Early Intervention,External Contractor,40198,Miscellaneous Expenses,5034,Pest control duties for 2016/17,10/06/2016,112703,340.00,Revenue,NAME REDACTED,16727
Chorley Borough Council,http://statistics.data.gov.uk/id/local-authority/30UE,Central Support Services,1009,NEW Early Intervention,External Contractor,40198,Miscellaneous Expenses,5034,Pest control duties for 2016/17,03/06/2016,112803,255.00,Revenue,NAME REDACTED,16727
Chorley Borough Council,http://statistics.data.gov.uk/id/local-authority/30UE,Central Support Services,1009,NEW Early Intervention,External Contractor,40198,Miscellaneous Expenses,5034,Pest control duties for 2016/17,22/06/2016,113119,340.00,Revenue,NAME REDACTED,16727
Chorley Borough Council,http://statistics.data.gov.uk/id/local-authority/30UE,Business Support,1095,NEW Business Development & Growth,Miscellaneous Expenses,40200,Miscellaneous Expenses,5034,sib grant,03/06/2016,112664,250.00,Revenue,NAME REDACTED,75756
Chorley Borough Council,http://statistics.data.gov.uk/id/local-authority/30UE,Economic Development,1096,NEW Business Development & Growth,Performing Rights Society Fees,40148,Grants and Subscriptions,5031,"To supply a PPL licence to Chorley Covered Market, Customer no: 4973591 PPL licence to authorise the public performance of ",08/06/2016,112902,889.70,Revenue,Phonographic Performance Limited,21456
Chorley Borough Council,http://statistics.data.gov.uk/id/local-authority/30UE,Business Support,1095,NEW Business Development & Growth,Performing Rights Society Fees,40148,Grants and Subscriptions,5031,"PPL Licence for Market Walk Shopping Centre, Chorley. Account no: 3421420 for period of June 2016 - May 17 To supply a",15/06/2016,112905,265.99,Revenue,Phonographic Performance Limited,21456
Chorley Borough Council,http://statistics.data.gov.uk/id/local-authority/30UE,Democratic Represent and  Mgnt,1007,NEW Policy & Governance,Performing Rights Society Fees,40148,Grants and Subscriptions,5031,Licence fee for period 15th July 2016 to 14th July 2017,29/06/2016,113381,458.70,Revenue,Phonographic Performance Limited,21456
Chorley Borough Council,http://statistics.data.gov.uk/id/local-authority/30UE,Service Management & Support,1009,NEW Customer & Digital,Diesel/Derv,30007,Direct Transport Costs,5016,Supply 2000 litres of gas oil to be delivered to Bengal St depot at price quoted,22/06/2016,113273,"1,380.00",Revenue,Pilkington Oils,18075
Chorley Borough Council,http://statistics.data.gov.uk/id/local-authority/30UE,Service Management & Support,1009,NEW Customer & Digital,Vehicle Maintenance,30045,Direct Transport Costs,5016,Please supply 205 litres of Hydraulic Oil. ISO 46 grade.,29/06/2016,113419,299.30,Revenue,Pilkington Oils,18075
Chorley Borough Council,http://statistics.data.gov.uk/id/local-authority/30UE,Business Support,1095,NEW Business Development & Growth,Miscellaneous Expenses,40200,Miscellaneous Expenses,5034,SIB,15/06/2016,113074,250.00,Revenue,Pink Spaghetti Preston & Surrounds,76063
Chorley Borough Council,http://statistics.data.gov.uk/id/local-authority/30UE,Unapportionable Central OHeads,1009,NEW Chief Executive,Furniture - Maintenance,40014,"Equipment, Furniture & Materia",5023,station inserter,29/06/2016,112944,518.44,Revenue,Pitney Bowes Ltd,18077
Chorley Borough Council,http://statistics.data.gov.uk/id/local-authority/30UE,Business Support,1095,NEW Business Development & Growth,Miscellaneous Expenses,40200,Miscellaneous Expenses,5034,Botany Bay and Great Knowley Masterplan,24/06/2016,113121,"2,353.99",Revenue,Planit IE Limited,62532
Chorley Borough Council,http://statistics.data.gov.uk/id/local-authority/30UE,Capital,Capital,NEW Business Development & Growth,Main Contractor,3007,Capital Expenditure,Capital,"RIBA Stage 3 - 24,040",22/06/2016,113177,"3,923.33",Capital,Planit IE Limited,62532
Chorley Borough Council,http://statistics.data.gov.uk/id/local-authority/30UE,Precepts and Collection Fund,Precepts,NEW Policy & Governance,LPA Precept,2010,Precepts & Collection Fund,Precept,council tax precept,09/06/2016,112818,"577,515.00",Revenue,Police & Crime Commissioner,17438
Chorley Borough Council,http://statistics.data.gov.uk/id/local-authority/30UE,Unapportionable Central OHeads,1009,NEW Policy & Governance,Fixtures & Fittings - Purchase,20027,Fixtures and Fittings,5010,Provision and installation of image boards for Union Street offices,01/06/2016,112493,432.14,Revenue,Poppy Signs Ltd,21898
Chorley Borough Council,http://statistics.data.gov.uk/id/local-authority/30UE,Economic Development,1096,NEW Business Development & Growth,Publicity - Advertising,40157,Miscellaneous Expenses,5034,Re : Cleveland Street - car park panels As per quote reference REF7185/1 Please: Take down the grand prix and the what�s your,01/06/2016,112494,455.07,Revenue,Poppy Signs Ltd,21898
Chorley Borough Council,http://statistics.data.gov.uk/id/local-authority/30UE,Democratic Represent and  Mgnt,1007,NEW Customer & Digital,Signs:Provision & Maintenance,20065,Grounds Maintenance Costs,5013,"Dahlia Close Play Area Sign x 1. 700mm x 600mm, Broom Close Play Area Sign x 1. 700mm x 600mm, Buttermere Green Play",01/06/2016,112618,424.56,Revenue,Poppy Signs Ltd,21898
Chorley Borough Council,http://statistics.data.gov.uk/id/local-authority/30UE,Business Support,1095,NEW Business Development & Growth,Miscellaneous Expenses,40200,Miscellaneous Expenses,5034,Steeley Lane Art Panels as per quote REF6835/21 Unit(s) Phoenix Mill Panels. 8 curve top panels and 2 rectangle panels. ,17/06/2016,112758,"1,400.73",Revenue,Poppy Signs Ltd,21898
Chorley Borough Council,http://statistics.data.gov.uk/id/local-authority/30UE,Business Support,1095,NEW Business Development & Growth,Miscellaneous Expenses,40200,Miscellaneous Expenses,5034,Pilkington Boundary Fence Banner. 1 banner 35m x 1.7m mesh with hem and eyelets Including manufacture and installation,17/06/2016,112758,"1,212.96",Revenue,Poppy Signs Ltd,21898
Chorley Borough Council,http://statistics.data.gov.uk/id/local-authority/30UE,Business Support,1095,NEW Business Development & Growth,Miscellaneous Expenses,40200,Miscellaneous Expenses,5034,Royal Mail verge sign. Batch of 3 free standing signs Including all manufacture and installation excluding removing the shrubs ,17/06/2016,112758,"1,470.12",Revenue,Poppy Signs Ltd,21898
Chorley Borough Council,http://statistics.data.gov.uk/id/local-authority/30UE,Unapportionable Central OHeads,1009,NEW Customer & Digital,Furniture - Purchase,40012,"Equipment, Furniture & Materia",5023,"ME 300, lumbar, height &depth arms, black x 4 (371.00) total 1484.00 Positiv memory foam seat x 4 (15.00) total 60.00",17/06/2016,112643,322.35,Revenue,Posturite UK Ltd,18538
Chorley Borough Council,http://statistics.data.gov.uk/id/local-authority/30UE,Unapportionable Central OHeads,1009,NEW Customer & Digital,Furniture - Purchase,40012,"Equipment, Furniture & Materia",5023,"ME 300, lumbar, height &depth arms, black x 4 (371.00) total 1484.00 Positiv memory foam seat x 4 (15.00) total 60.00",17/06/2016,112996,"1,544.00",Revenue,Posturite UK Ltd,18538
Chorley Borough Council,http://statistics.data.gov.uk/id/local-authority/30UE,Unapportionable Central OHeads,1009,NEW Policy & Governance,General Subscriptions,40146,Grants and Subscriptions,5031,Media monitoring system,15/06/2016,113096,"2,250.00",Revenue,Precise Media Monitoring Ltd,73335
Chorley Borough Council,http://statistics.data.gov.uk/id/local-authority/30UE,Unapportionable Central OHeads,1009,NEW Chief Executive,Photocopier Consumables,40049,"Printing, Stationery & General",5026,"Evolution Everyday A4 80gsm, Box 2500",29/06/2016,113377,454.00,Revenue,Premier Paper Group,54451
Chorley Borough Council,http://statistics.data.gov.uk/id/local-authority/30UE,Unapportionable Central OHeads,1009,NEW Chief Executive,Photocopier Consumables,40049,"Printing, Stationery & General",5026,White Card A4 250gsm,29/06/2016,113377,89.92,Revenue,Premier Paper Group,54451
Chorley Borough Council,http://statistics.data.gov.uk/id/local-authority/30UE,Democratic Represent and  Mgnt,1007,NEW Policy & Governance,Supplies-Grounds Maintenance,40025,"Equipment, Furniture & Materia",5023,Appearance of NAME REDACTED at the Chorley Flower Show 2016,17/06/2016,113126,"4,500.00",Revenue,Prime Performers Limited,70499
Chorley Borough Council,http://statistics.data.gov.uk/id/local-authority/30UE,Democratic Represent and  Mgnt,1007,NEW Policy & Governance,Supplies-Grounds Maintenance,40025,"Equipment, Furniture & Materia",5023,Appearance of NAME REDACTED at Chorley Flower Show 2016,15/06/2016,113127,"3,000.00",Revenue,Prime Performers Limited,70499
Chorley Borough Council,http://statistics.data.gov.uk/id/local-authority/30UE,Elections,1012,NEW Policy & Governance,Printing,40043,"Printing, Stationery & General",5026,Parish postal vote packs,03/06/2016,112845,493.68,Revenue,Print Image Network,21171
Chorley Borough Council,http://statistics.data.gov.uk/id/local-authority/30UE,Elections,1012,NEW Policy & Governance,Printing,40043,"Printing, Stationery & General",5026,EU Referendum Poll cards,29/06/2016,113382,"4,797.91",Revenue,Print Image Network,21171
Chorley Borough Council,http://statistics.data.gov.uk/id/local-authority/30UE,Elections,1012,NEW Policy & Governance,Printing,40043,"Printing, Stationery & General",5026,Overseas Postal Vote packs for EU Referendum,29/06/2016,113383,"2,962.50",Revenue,Print Image Network,21171
Chorley Borough Council,http://statistics.data.gov.uk/id/local-authority/30UE,Interest Payable on Debt,1020,NEW Policy & Governance,Interest Payable,9009,Interest Payments,5067,interest,09/06/2016,112811,"200,491.32",Revenue,Public Works Loans Board,21480
Chorley Borough Council,http://statistics.data.gov.uk/id/local-authority/30UE,Corporate Management,1008,NEW Chief Executive,Conferences - Staff,40120,Expenses,5030,"NAME REDACTED to attend Cipfa Conference Manchester 13, 14 July 2016",29/06/2016,113266,695.00,Revenue,Redactive Events Ltd,54618
Chorley Borough Council,http://statistics.data.gov.uk/id/local-authority/30UE,Corporate Management,1008,NEW Policy & Governance,Exhibitions & Special Events,40158,Miscellaneous Expenses,5034,Animal meet and greet for May half term family fun day in Market Walk,15/06/2016,113051,400.00,Revenue,Reef`s Reptiles,74549
Chorley Borough Council,http://statistics.data.gov.uk/id/local-authority/30UE,Business Support,1095,NEW Business Development & Growth,Grants To Other Organisations,40127,Grants and Subscriptions,5031,business rate subsidy,03/06/2016,112587,"1,085.25",Revenue,Regan and Hallworth Ltd,74972
Chorley Borough Council,http://statistics.data.gov.uk/id/local-authority/30UE,Building Control,1090,NEW Customer & Digital,General Subscriptions,40146,Grants and Subscriptions,5031,Annual Support Renewal for Submit a Plan,17/06/2016,112746,695.00,Revenue,Resolution Data Management Ltd,48223
Chorley Borough Council,http://statistics.data.gov.uk/id/local-authority/30UE,Control Accounts,Control,NEW Policy & Governance,General Balances,100,Balance Sheet,Balance,childcare vouchers,09/06/2016,112823,"5,160.93",Revenue,Reward Gateway (UK) Ltd,66814
Chorley Borough Council,http://statistics.data.gov.uk/id/local-authority/30UE,Non Domestic Rates Redistribut,,NEW Policy & Governance,Tariff to Business Rates Pool,49002,Expenditure not in NCOS,,LANCS BUS RATES POOL,09/06/2016,112566,"707,099.00",Revenue,Ribble Valley Borough Council,21100
Chorley Borough Council,http://statistics.data.gov.uk/id/local-authority/30UE,Service Management & Support,1009,NEW Customer & Digital,Supplies-Grounds Maintenance,40025,"Equipment, Furniture & Materia",5023,Trustee amenity weedkiller- Glyphosate,22/06/2016,113152,"1,060.00",Revenue,Rigby Taylor Ltd,16299
Chorley Borough Council,http://statistics.data.gov.uk/id/local-authority/30UE,Democratic Represent and  Mgnt,1007,NEW Policy & Governance,Processional Routes,40177,Miscellaneous Expenses,5034,"management for the Mayor`s Civic Sunday Parade Chorley town centre Sunday 22nd May 2016. To include 4 crew, road closure ",15/06/2016,112984,565.00,Revenue,Road Safety Services Ltd,69457
Chorley Borough Council,http://statistics.data.gov.uk/id/local-authority/30UE,Elections,1012,NEW Policy & Governance,Postages,40082,Communication and Computing,5028,"postal votes mailed out for EU REf 27 May,",15/06/2016,112987,"10,122.10",Revenue,Royal Mail Group Plc,17522
Chorley Borough Council,http://statistics.data.gov.uk/id/local-authority/30UE,Elections,1012,NEW Policy & Governance,Postages,40082,Communication and Computing,5028,Postal votes mailed out borough elections 2016 - RXAE- GAEJ-REXJ,15/06/2016,113029,"9,929.89",Revenue,Royal Mail Group Plc,17522
Chorley Borough Council,http://statistics.data.gov.uk/id/local-authority/30UE,Elections,1012,NEW Policy & Governance,Postages,40082,Communication and Computing,5028,postal vote returns 2016  RXAE-GAEJ-REXJ,15/06/2016,113030,"2,381.28",Revenue,Royal Mail Group Plc,17522
Chorley Borough Council,http://statistics.data.gov.uk/id/local-authority/30UE,Elections,1012,NEW Policy & Governance,Postages,40082,Communication and Computing,5028,postal vote returns 2016  RXAE-GAEJ-REXJ,15/06/2016,113047,"2,055.18",Revenue,Royal Mail Group Plc,17522
Chorley Borough Council,http://statistics.data.gov.uk/id/local-authority/30UE,Elections,1012,NEW Policy & Governance,Postages,40082,Communication and Computing,5028,postal vote returns 2016  RXAE-GAEJ-REXJ,15/06/2016,113048,"1,662.75",Revenue,Royal Mail Group Plc,17522
Chorley Borough Council,http://statistics.data.gov.uk/id/local-authority/30UE,Democratic Represent and  Mgnt,1007,NEW Policy & Governance,Other Contributions,40145,Grants and Subscriptions,5031,grant,29/06/2016,113440,300.00,Revenue,RSPCA Preston & District Branch,76085
Chorley Borough Council,http://statistics.data.gov.uk/id/local-authority/30UE,Economic Development,1096,NEW Business Development & Growth,Professional Fees,40063,Services,5027,Speaker fee for 27th July,29/06/2016,113380,"1,000.00",Revenue,Ruth Badger Consultancy Ltd,76090
Chorley Borough Council,http://statistics.data.gov.uk/id/local-authority/30UE,Business Support,1095,NEW Business Development & Growth,Miscellaneous Expenses,40200,Miscellaneous Expenses,5034,SIB Grant,03/06/2016,112740,250.00,Revenue,NAME REDACTED,75821
Chorley Borough Council,http://statistics.data.gov.uk/id/local-authority/30UE,Democratic Represent and  Mgnt,1007,NEW Policy & Governance,Arts Development Initiatives,40187,Miscellaneous Expenses,5034,"Chorley Flower Show Saturday 30th July and Sunday 31st July 2016 Samba band performances - 3,300",22/06/2016,113276,"3,300.00",Revenue,Sambafriq,21441
Chorley Borough Council,http://statistics.data.gov.uk/id/local-authority/30UE,Service Management & Support,1009,NEW Customer & Digital,Diesel/Derv,30007,Direct Transport Costs,5016,Supply 8000litres of Road diesel to be delivered to Bengal St at price quoted via the chest,08/06/2016,112820,"6,517.22",Revenue,Samuel Cooke & Co Ltd,17173
Chorley Borough Council,http://statistics.data.gov.uk/id/local-authority/30UE,Service Management & Support,1009,NEW Customer & Digital,Diesel/Derv,30007,Direct Transport Costs,5016,transport costs,08/06/2016,112820,150.08,Revenue,Samuel Cooke & Co Ltd,17173
Chorley Borough Council,http://statistics.data.gov.uk/id/local-authority/30UE,Service Management & Support,1009,NEW Customer & Digital,Diesel/Derv,30007,Direct Transport Costs,5016,Supply 2000litres of gas oil to be delivered to Bengal St depot as per your quote via the chest,08/06/2016,112821,799.00,Revenue,Samuel Cooke & Co Ltd,17173
Chorley Borough Council,http://statistics.data.gov.uk/id/local-authority/30UE,Service Management & Support,1009,NEW Customer & Digital,Diesel/Derv,30007,Direct Transport Costs,5016,transport costs,08/06/2016,112821,40.00,Revenue,Samuel Cooke & Co Ltd,17173
Chorley Borough Council,http://statistics.data.gov.uk/id/local-authority/30UE,Homelessness,1075,NEW Early Intervention,External Contractor,40198,Miscellaneous Expenses,5034,For Concierge Service at ADDRESS REDACTED. This is for the period April 2016 to March 2017 inclusive.,22/06/2016,113035,"3,395.60",Revenue,Sector Security Services,19269
Chorley Borough Council,http://statistics.data.gov.uk/id/local-authority/30UE,Homelessness,1075,NEW Early Intervention,External Contractor,40198,Miscellaneous Expenses,5034,Feb-16,29/06/2016,113397,"2,121.12",Revenue,Sector Security Services,19269
Chorley Borough Council,http://statistics.data.gov.uk/id/local-authority/30UE,Business Support,1095,NEW Business Development & Growth,Security Service,40062,Services,5027,To provide Security Services to Market Walk Shopping Centre April 2016 to March 2017,03/06/2016,112635,"5,728.69",Revenue,Securitas Security Services (UK) Ltd,70693
Chorley Borough Council,http://statistics.data.gov.uk/id/local-authority/30UE,Service Management & Support,1009,NEW Customer & Digital,Transport Operating Leases,30029,Contrct Hire & Operating Lease,5018,Lease rental 12/08/16-11/08/17 NAME REDACTED X950R Ride on Mower,22/06/2016,113204,"1,808.56",Revenue,SG EQUIPMENT FINANCE LTD,18156
Chorley Borough Council,http://statistics.data.gov.uk/id/local-authority/30UE,Service Management & Support,1009,NEW Customer & Digital,Transport Operating Leases,30029,Contrct Hire & Operating Lease,5018,Lease rental 12/08/16-11/08/17 PO15 HRL,22/06/2016,113205,"3,939.50",Revenue,SG EQUIPMENT FINANCE LTD,18156
Chorley Borough Council,http://statistics.data.gov.uk/id/local-authority/30UE,Service Management & Support,1009,NEW Customer & Digital,Transport Operating Leases,30029,Contrct Hire & Operating Lease,5018,Lease rental 12/08/16-11/08/17 PO15 HZB,22/06/2016,113205,"1,736.79",Revenue,SG EQUIPMENT FINANCE LTD,18156
Chorley Borough Council,http://statistics.data.gov.uk/id/local-authority/30UE,Elections,1012,NEW Policy & Governance,Stationery,40050,"Printing, Stationery & General",5026,200 Guidance for Voters - EU Referendum,01/06/2016,112722,157.50,Revenue,Shaw & Sons Ltd,18092
Chorley Borough Council,http://statistics.data.gov.uk/id/local-authority/30UE,Elections,1012,NEW Policy & Governance,Stationery,40050,"Printing, Stationery & General",5026,350 Voting Compartment Notice - EU Referendum,01/06/2016,112722,165.38,Revenue,Shaw & Sons Ltd,18092
Chorley Borough Council,http://statistics.data.gov.uk/id/local-authority/30UE,Elections,1012,NEW Policy & Governance,Stationery,40050,"Printing, Stationery & General",5026,30 Ballot Paper compactor,01/06/2016,112722,144.90,Revenue,Shaw & Sons Ltd,18092
Chorley Borough Council,http://statistics.data.gov.uk/id/local-authority/30UE,Elections,1012,NEW Policy & Governance,Stationery,40050,"Printing, Stationery & General",5026,CBESDBAGBL PO Sundries,22/06/2016,113333,224.25,Revenue,Shaw & Sons Ltd,18092
Chorley Borough Council,http://statistics.data.gov.uk/id/local-authority/30UE,Elections,1012,NEW Policy & Governance,Stationery,40050,"Printing, Stationery & General",5026,Candidates & Agents Packs CBE-APBL,22/06/2016,113333,53.50,Revenue,Shaw & Sons Ltd,18092
Chorley Borough Council,http://statistics.data.gov.uk/id/local-authority/30UE,Elections,1012,NEW Policy & Governance,Stationery,40050,"Printing, Stationery & General",5026,25 x CBE 6BL  Directions for Guidance of Votes,22/06/2016,113333,26.25,Revenue,Shaw & Sons Ltd,18092
Chorley Borough Council,http://statistics.data.gov.uk/id/local-authority/30UE,Elections,1012,NEW Policy & Governance,Stationery,40050,"Printing, Stationery & General",5026,50 x Voting Compartment Notices CBE 7BL,22/06/2016,113333,31.50,Revenue,Shaw & Sons Ltd,18092
Chorley Borough Council,http://statistics.data.gov.uk/id/local-authority/30UE,Homelessness,1075,NEW Early Intervention,Training Course Fees,17010,Indirect Employee Expenses,5002,Shelter Homelessness Law: Introductory: Manchester - 13-14/06/2016,03/06/2016,112840,300.00,Revenue,Shelter Training,21902
Chorley Borough Council,http://statistics.data.gov.uk/id/local-authority/30UE,Central Support Services,1009,NEW Customer & Digital,Miscellaneous Expenses,40200,Miscellaneous Expenses,5034,"Site access works at Euxton Skate Park/Yarrow Valley Park as per agreed schedule - resurfacing, speed humps and drainage",08/06/2016,112743,"5,373.40",Revenue,Shiloh Surfacing,61457
Chorley Borough Council,http://statistics.data.gov.uk/id/local-authority/30UE,Capital,Capital,NEW Policy & Governance,Purchase Money,3027,Capital Expenditure,Capital,apex house,15/06/2016,113142,"185,000.00",Capital,Silicone Oasis Limited,76065
Chorley Borough Council,http://statistics.data.gov.uk/id/local-authority/30UE,Service Management & Support,1009,NEW Customer & Digital,Protective Clothing,40040,"Clothing, Uniforms and Laundry",5025,"Yellow Hi Viz 3/4 length jacket to EN471 Class 3.  Breathable waterproof fabric, concealed hood, full zip front with storm flap. ",08/06/2016,112750,43.95,Revenue,Smart Image Workwear,21064
Chorley Borough Council,http://statistics.data.gov.uk/id/local-authority/30UE,Service Management & Support,1009,NEW Customer & Digital,Protective Clothing,40040,"Clothing, Uniforms and Laundry",5025,"Yellow Hi Viz 3/4 length jacket to EN471 Class 3.  Breathable waterproof fabric, concealed hood, full zip front with storm flap.  ",08/06/2016,112750,43.95,Revenue,Smart Image Workwear,21064
Chorley Borough Council,http://statistics.data.gov.uk/id/local-authority/30UE,Service Management & Support,1009,NEW Customer & Digital,Protective Clothing,40040,"Clothing, Uniforms and Laundry",5025,"Yellow Hi Viz 3/4 length jacket to EN471 Class 3.  Breathable waterproof fabric, concealed hood, full zip front with storm flap. ",08/06/2016,112750,43.95,Revenue,Smart Image Workwear,21064
Chorley Borough Council,http://statistics.data.gov.uk/id/local-authority/30UE,Service Management & Support,1009,NEW Customer & Digital,Protective Clothing,40040,"Clothing, Uniforms and Laundry",5025,High Viz Yellow Waterproof Bomber Jacket c/w chorley council logo screen printed on front and back Size - Med Product Code,08/06/2016,112750,86.70,Revenue,Smart Image Workwear,21064
Chorley Borough Council,http://statistics.data.gov.uk/id/local-authority/30UE,Service Management & Support,1009,NEW Customer & Digital,Protective Clothing,40040,"Clothing, Uniforms and Laundry",5025,High Viz Yellow Waterproof Bomber Jacket c/w chorley council logo screen printed on front and back Size - Large Product Code ,08/06/2016,112750,57.80,Revenue,Smart Image Workwear,21064
Chorley Borough Council,http://statistics.data.gov.uk/id/local-authority/30UE,Service Management & Support,1009,NEW Customer & Digital,Protective Clothing,40040,"Clothing, Uniforms and Laundry",5025,High Viz Yellow Waterproof Bomber Jacket c/w chorley council logo screen printed on front and back Size - X Large Product Code,08/06/2016,112750,28.90,Revenue,Smart Image Workwear,21064
Chorley Borough Council,http://statistics.data.gov.uk/id/local-authority/30UE,Service Management & Support,1009,NEW Customer & Digital,Protective Clothing,40040,"Clothing, Uniforms and Laundry",5025,"ORN Hawk Cargo Trousers.  Colour - Black,  Waist size = 30``,  Leg size = 32``.  Product Code = CSR38.",08/06/2016,112781,51.60,Revenue,Smart Image Workwear,21064
Chorley Borough Council,http://statistics.data.gov.uk/id/local-authority/30UE,Service Management & Support,1009,NEW Customer & Digital,Protective Clothing,40040,"Clothing, Uniforms and Laundry",5025,"ORN Hawk Cargo Trousers.  Colour - Black,  Waist size = 32``,  Leg size = 32``.  Product Code = CSR38.",08/06/2016,112781,64.50,Revenue,Smart Image Workwear,21064
Chorley Borough Council,http://statistics.data.gov.uk/id/local-authority/30UE,Service Management & Support,1009,NEW Customer & Digital,Protective Clothing,40040,"Clothing, Uniforms and Laundry",5025,"ORN Hawk Cargo Trousers.  Colour - Black,  Waist size = 34``,  Leg size = 32``.  Product Code = CSR38.",08/06/2016,112781,64.50,Revenue,Smart Image Workwear,21064
Chorley Borough Council,http://statistics.data.gov.uk/id/local-authority/30UE,Service Management & Support,1009,NEW Customer & Digital,Protective Clothing,40040,"Clothing, Uniforms and Laundry",5025,"ORN Hawk Cargo Trousers.  Colour - Black,  Waist size = 36``,  Leg size = 32``.  Product Code = CSR38.",08/06/2016,112781,51.60,Revenue,Smart Image Workwear,21064
Chorley Borough Council,http://statistics.data.gov.uk/id/local-authority/30UE,Service Management & Support,1009,NEW Customer & Digital,Protective Clothing,40040,"Clothing, Uniforms and Laundry",5025,"ORN Hawk Cargo Trousers.  Colour - Black,  Waist size = 40``,  Leg size = 32``.  Product Code = CSR38.",08/06/2016,112781,25.80,Revenue,Smart Image Workwear,21064
Chorley Borough Council,http://statistics.data.gov.uk/id/local-authority/30UE,Service Management & Support,1009,NEW Customer & Digital,Protective Clothing,40040,"Clothing, Uniforms and Laundry",5025,Dickies Oxford workplace shirt.  Light Blue.  Size = 16`` Collar.  Short Sleeved. Chorley Council coloured logo embroidered on left ,10/06/2016,112965,26.55,Revenue,Smart Image Workwear,21064
Chorley Borough Council,http://statistics.data.gov.uk/id/local-authority/30UE,Service Management & Support,1009,NEW Customer & Digital,Protective Clothing,40040,"Clothing, Uniforms and Laundry",5025,Dickies Oxford workplace shirt.  Light Blue.  Size = 16 1/2`` Collar.  Short Sleeved Chorley Council coloured logo embroidered on ,10/06/2016,112965,53.10,Revenue,Smart Image Workwear,21064
Chorley Borough Council,http://statistics.data.gov.uk/id/local-authority/30UE,Service Management & Support,1009,NEW Customer & Digital,Protective Clothing,40040,"Clothing, Uniforms and Laundry",5025,"Uneek UC122 Polo Shirt 190gsm, 100% cotton.  Colour - Black.c/w with Chorley Council logo embroidered on left breastSize = XL ",10/06/2016,112965,20.50,Revenue,Smart Image Workwear,21064
Chorley Borough Council,http://statistics.data.gov.uk/id/local-authority/30UE,Service Management & Support,1009,NEW Customer & Digital,Protective Clothing,40040,"Clothing, Uniforms and Laundry",5025,"Uneek UC122 Polo Shirt 190gsm, 100% cotton.  Colour - Red. c/w with Chorley Council logo embroidered on left breastSize = XXL ",10/06/2016,112965,20.50,Revenue,Smart Image Workwear,21064
Chorley Borough Council,http://statistics.data.gov.uk/id/local-authority/30UE,Service Management & Support,1009,NEW Customer & Digital,Protective Clothing,40040,"Clothing, Uniforms and Laundry",5025,"Uneek UC122 Polo Shirt 190gsm, 100% cotton.  Colour - Red.  c/w with CBC logo embroidered on left breast.  Size = XXXL.  ",10/06/2016,112965,20.50,Revenue,Smart Image Workwear,21064
Chorley Borough Council,http://statistics.data.gov.uk/id/local-authority/30UE,Service Management & Support,1009,NEW Customer & Digital,Protective Clothing,40040,"Clothing, Uniforms and Laundry",5025,Uneek UC203 crew neck sweat shirt.  Colour = Red c/w CBC logo embroided on front left breast.  Size = Medium.  Product Code ,10/06/2016,112965,32.50,Revenue,Smart Image Workwear,21064
Chorley Borough Council,http://statistics.data.gov.uk/id/local-authority/30UE,Service Management & Support,1009,NEW Customer & Digital,Protective Clothing,40040,"Clothing, Uniforms and Laundry",5025,Uneek UC 601 Zip Fleece Jacket.  Colour - Red c/w CBC logo embroidered on front.  Size = Large.  Product Code = CSR37.,10/06/2016,112965,33.45,Revenue,Smart Image Workwear,21064
Chorley Borough Council,http://statistics.data.gov.uk/id/local-authority/30UE,Service Management & Support,1009,NEW Customer & Digital,Protective Clothing,40040,"Clothing, Uniforms and Laundry",5025,Uneek UC 601 Zip Fleece Jacket.  Colour - Red c/w cbc logo embroidered on front.  Size = Medium.  Product Code = CSR37.,10/06/2016,112965,55.75,Revenue,Smart Image Workwear,21064
Chorley Borough Council,http://statistics.data.gov.uk/id/local-authority/30UE,Unapportionable Central OHeads,1009,NEW Policy & Governance,Exhibitions & Special Events,40158,Miscellaneous Expenses,5034,115 x event steward high vis vests,29/06/2016,113451,327.75,Revenue,Smart Image Workwear,21064
Chorley Borough Council,http://statistics.data.gov.uk/id/local-authority/30UE,Central Support Services,1009,NEW Customer & Digital,Computer Software-Purchase,40100,Communication and Computing,5028,Dragon NaturallySpeaking Professional Access To Work Edition - Single Licence v13.x (CD),17/06/2016,112864,395.10,Revenue,Softcat Ltd,69996
Chorley Borough Council,http://statistics.data.gov.uk/id/local-authority/30UE,Democratic Represent and  Mgnt,1007,NEW Policy & Governance,Other Contributions,40145,Grants and Subscriptions,5031,grant,08/06/2016,112837,"3,000.00",Revenue,St Catherine`s Hospice Trading Limited,19138
Chorley Borough Council,http://statistics.data.gov.uk/id/local-authority/30UE,Business Support,1095,NEW Business Development & Growth,Grants To Other Organisations,40127,Grants and Subscriptions,5031,shop front grant,03/06/2016,112764,"7,711.05",Revenue,Steeley Lane Picture Frames,60924
Chorley Borough Council,http://statistics.data.gov.uk/id/local-authority/30UE,Development Control,1091,NEW Customer & Digital,Refunds,40220,Miscellaneous Expenses,5034,Applcaition refund,17/06/2016,112917,864.00,Revenue,Stewart Milne Group NWE,75921
Chorley Borough Council,http://statistics.data.gov.uk/id/local-authority/30UE,Unapportionable Central OHeads,1009,NEW Business Development & Growth,General Repairs - Reactive,20004,Repairs Maintenance & Alts,5005,Blanket order for REACTIVE works for 2016.,15/06/2016,112894,265.91,Revenue,Stringfellow Bldg Cntrctrs Ltd,17893
Chorley Borough Council,http://statistics.data.gov.uk/id/local-authority/30UE,Unapportionable Central OHeads,1009,NEW Business Development & Growth,General Repairs - Reactive,20004,Repairs Maintenance & Alts,5005,Blanket order for REACTIVE works for 2016.,15/06/2016,112899,"1,431.85",Revenue,Stringfellow Bldg Cntrctrs Ltd,17893
Chorley Borough Council,http://statistics.data.gov.uk/id/local-authority/30UE,Capital,Capital,NEW Early Intervention,Grants,3002,Capital Expenditure,Capital,ADDRESS REDACTED,29/06/2016,113076,"4,715.00",Capital,Stringfellow Bldg Cntrctrs Ltd,17893
Chorley Borough Council,http://statistics.data.gov.uk/id/local-authority/30UE,Capital,Capital,NEW Early Intervention,Grants,3002,Capital Expenditure,Capital,ADDRESS REDACTED,29/06/2016,113081,"3,770.00",Capital,Stringfellow Bldg Cntrctrs Ltd,17893
Chorley Borough Council,http://statistics.data.gov.uk/id/local-authority/30UE,Capital,Capital,NEW Early Intervention,Grants,3002,Capital Expenditure,Capital,ADDRESS REDACTED,29/06/2016,113082,"1,649.55",Capital,Stringfellow Bldg Cntrctrs Ltd,17893
Chorley Borough Council,http://statistics.data.gov.uk/id/local-authority/30UE,Unapportionable Central OHeads,1009,NEW Business Development & Growth,General Repairs - Reactive,20004,Repairs Maintenance & Alts,5005,Blanket order for REACTIVE works for 2016.,24/06/2016,113108,490.43,Revenue,Stringfellow Bldg Cntrctrs Ltd,17893
Chorley Borough Council,http://statistics.data.gov.uk/id/local-authority/30UE,Unapportionable Central OHeads,1009,NEW Business Development & Growth,General Repairs - Reactive,20004,Repairs Maintenance & Alts,5005,Blanket order for REACTIVE works for 2016.,24/06/2016,113116,540.00,Revenue,Stringfellow Bldg Cntrctrs Ltd,17893
Chorley Borough Council,http://statistics.data.gov.uk/id/local-authority/30UE,Unapportionable Central OHeads,1009,NEW Business Development & Growth,General Repairs - Reactive,20004,Repairs Maintenance & Alts,5005,Blanket order for REACTIVE works for 2016.,24/06/2016,113118,"1,957.50",Revenue,Stringfellow Bldg Cntrctrs Ltd,17893
Chorley Borough Council,http://statistics.data.gov.uk/id/local-authority/30UE,Unapportionable Central OHeads,1009,NEW Business Development & Growth,General Repairs - Reactive,20004,Repairs Maintenance & Alts,5005,Blanket order for REACTIVE works for 2016.,24/06/2016,113191,402.50,Revenue,Stringfellow Bldg Cntrctrs Ltd,17893
Chorley Borough Council,http://statistics.data.gov.uk/id/local-authority/30UE,Capital,Capital,NEW Early Intervention,Grants,3002,Capital Expenditure,Capital,ADDRESS REDACTED,29/06/2016,113292,"1,495.00",Capital,Stringfellow Bldg Cntrctrs Ltd,17893
Chorley Borough Council,http://statistics.data.gov.uk/id/local-authority/30UE,Unapportionable Central OHeads,1009,NEW Business Development & Growth,General Repairs - Reactive,20004,Repairs Maintenance & Alts,5005,Blanket order for REACTIVE works for 2016.,29/06/2016,113322,290.40,Revenue,Stringfellow Bldg Cntrctrs Ltd,17893
Chorley Borough Council,http://statistics.data.gov.uk/id/local-authority/30UE,Unapportionable Central OHeads,1009,NEW Business Development & Growth,General Repairs - Reactive,20004,Repairs Maintenance & Alts,5005,Blanket order for REACTIVE works for 2016.,24/06/2016,113323,"1,913.67",Revenue,Stringfellow Bldg Cntrctrs Ltd,17893
Chorley Borough Council,http://statistics.data.gov.uk/id/local-authority/30UE,Unapportionable Central OHeads,1009,NEW Business Development & Growth,General Repairs - Reactive,20004,Repairs Maintenance & Alts,5005,Blanket order for REACTIVE works for 2016.,29/06/2016,113325,"1,683.01",Revenue,Stringfellow Bldg Cntrctrs Ltd,17893
Chorley Borough Council,http://statistics.data.gov.uk/id/local-authority/30UE,Capital,Capital,NEW Customer & Digital,Main Contractor,3007,Capital Expenditure,Capital,Ground Investigation at ADDRESS REDACTED,01/06/2016,112606,982.00,Capital,Sub Surface North West Limited,55367
Chorley Borough Council,http://statistics.data.gov.uk/id/local-authority/30UE,Business Support,1095,NEW Business Development & Growth,Miscellaneous Expenses,40200,Miscellaneous Expenses,5034,To carry out a Topo survey of Queens Road car park including adjacent section of Queens Road.,17/06/2016,113036,525.00,Revenue,Survey Operations Ltd,55910
Chorley Borough Council,http://statistics.data.gov.uk/id/local-authority/30UE,Economic Development,1096,NEW Business Development & Growth,Cleaning Materials,40019,"Equipment, Furniture & Materia",5023,Cleaning materials for covered market toilets.,15/06/2016,112874,366.02,Revenue,Swiftkleen Ltd,17933
Chorley Borough Council,http://statistics.data.gov.uk/id/local-authority/30UE,Unapportionable Central OHeads,1009,NEW Policy & Governance,Cleaning Materials,40019,"Equipment, Furniture & Materia",5023,05/35SSMJ Mini Jumbo QTY 12 packs @ 11.31 per box,15/06/2016,113039,103.32,Revenue,Swiftkleen Ltd,17933
Chorley Borough Council,http://statistics.data.gov.uk/id/local-authority/30UE,Unapportionable Central OHeads,1009,NEW Policy & Governance,Cleaning Materials,40019,"Equipment, Furniture & Materia",5023,LTR soft toilet rolls QTY 10 packs at 7.83 per box,15/06/2016,113039,58.70,Revenue,Swiftkleen Ltd,17933
Chorley Borough Council,http://statistics.data.gov.uk/id/local-authority/30UE,Unapportionable Central OHeads,1009,NEW Policy & Governance,Cleaning Materials,40019,"Equipment, Furniture & Materia",5023,Paper towels 3600 green 1 fold QTY 14 boxes 10.10 per box,15/06/2016,113039,141.40,Revenue,Swiftkleen Ltd,17933
Chorley Borough Council,http://statistics.data.gov.uk/id/local-authority/30UE,Unapportionable Central OHeads,1009,NEW Policy & Governance,Cleaning Materials,40019,"Equipment, Furniture & Materia",5023,HSC hard surface cleaner 5litre QTY 4   at 5.28 each,15/06/2016,113039,17.96,Revenue,Swiftkleen Ltd,17933
Chorley Borough Council,http://statistics.data.gov.uk/id/local-authority/30UE,Unapportionable Central OHeads,1009,NEW Policy & Governance,Cleaning Materials,40019,"Equipment, Furniture & Materia",5023,GVF Glade Vacuum Fresh QTY 10 @ 1.65 each,15/06/2016,113039,10.70,Revenue,Swiftkleen Ltd,17933
Chorley Borough Council,http://statistics.data.gov.uk/id/local-authority/30UE,Unapportionable Central OHeads,1009,NEW Policy & Governance,Cleaning Materials,40019,"Equipment, Furniture & Materia",5023,SAF Stand up air freshener QTY 24 @ 1.19 each,15/06/2016,113039,6.72,Revenue,Swiftkleen Ltd,17933
Chorley Borough Council,http://statistics.data.gov.uk/id/local-authority/30UE,Unapportionable Central OHeads,1009,NEW Policy & Governance,Cleaning Materials,40019,"Equipment, Furniture & Materia",5023,DCS Yellow Dishcloths QTY 10 packs @ 1.63 each,15/06/2016,113039,19.20,Revenue,Swiftkleen Ltd,17933
Chorley Borough Council,http://statistics.data.gov.uk/id/local-authority/30UE,Unapportionable Central OHeads,1009,NEW Policy & Governance,Cleaning Materials,40019,"Equipment, Furniture & Materia",5023,39BBL Black bin liners QTY 8 boxes 16.44,15/06/2016,113039,93.60,Revenue,Swiftkleen Ltd,17933
Chorley Borough Council,http://statistics.data.gov.uk/id/local-authority/30UE,Unapportionable Central OHeads,1009,NEW Policy & Governance,Cleaning Materials,40019,"Equipment, Furniture & Materia",5023,SBL White Swing bin liners 20 bags per roll 87p per roll QTY 20,15/06/2016,113039,14.80,Revenue,Swiftkleen Ltd,17933
Chorley Borough Council,http://statistics.data.gov.uk/id/local-authority/30UE,Unapportionable Central OHeads,1009,NEW Policy & Governance,Cleaning Materials,40019,"Equipment, Furniture & Materia",5023,NITPF Nitrile gloves size M 47.12 per case QTY 1,15/06/2016,113039,29.50,Revenue,Swiftkleen Ltd,17933
Chorley Borough Council,http://statistics.data.gov.uk/id/local-authority/30UE,Unapportionable Central OHeads,1009,NEW Policy & Governance,Cleaning Materials,40019,"Equipment, Furniture & Materia",5023,BLUSYL Evans High Active Washing up Liquid/Detergent 5 litre PH Neutral 5.23 QTY 4,15/06/2016,113039,13.04,Revenue,Swiftkleen Ltd,17933
Chorley Borough Council,http://statistics.data.gov.uk/id/local-authority/30UE,Unapportionable Central OHeads,1009,NEW Policy & Governance,Cleaning Materials,40019,"Equipment, Furniture & Materia",5023,CP Charm Furniture polish 95p each QTY 8,15/06/2016,113039,6.48,Revenue,Swiftkleen Ltd,17933
Chorley Borough Council,http://statistics.data.gov.uk/id/local-authority/30UE,Unapportionable Central OHeads,1009,NEW Policy & Governance,Cleaning Materials,40019,"Equipment, Furniture & Materia",5023,FLASHB Flash with bleach 500ml @ 1.38 each QTY 3,15/06/2016,113039,3.72,Revenue,Swiftkleen Ltd,17933
Chorley Borough Council,http://statistics.data.gov.uk/id/local-authority/30UE,Unapportionable Central OHeads,1009,NEW Policy & Governance,Pensions Increase Act Payments,18005,Indirect Employee Expenses,5002,rechargeable pension costs,01/06/2016,112771,"2,634.65",Revenue,Tameside MBC-Gmpf,17034
Chorley Borough Council,http://statistics.data.gov.uk/id/local-authority/30UE,Capital,Capital,NEW Early Intervention,Main Contractor,3007,Capital Expenditure,Capital,Capital Works - all upgrade of equipment and control room,17/06/2016,113001,"26,244.80",Capital,Technology Solutions,72376
Chorley Borough Council,http://statistics.data.gov.uk/id/local-authority/30UE,Economic Development,1096,NEW Business Development & Growth,Promotional Expenses,40159,Miscellaneous Expenses,5034,"Promotional shopping bags, Print ref :The Markets Chorley, Quote ref TC : 19180/89552 Glue Patch quantity 7500",22/06/2016,112564,"1,361.20",Revenue,Templecoombe Ltd,48607
Chorley Borough Council,http://statistics.data.gov.uk/id/local-authority/30UE,Business Support,1095,NEW Business Development & Growth,Grants To Other Organisations,40127,Grants and Subscriptions,5031,grant,10/06/2016,112920,500.00,Revenue,The Buttonhole,18367
Chorley Borough Council,http://statistics.data.gov.uk/id/local-authority/30UE,Business Support,1095,NEW Business Development & Growth,Grants To Other Organisations,40127,Grants and Subscriptions,5031,subsidy 4,10/06/2016,112920,158.75,Revenue,The Buttonhole,18367
Chorley Borough Council,http://statistics.data.gov.uk/id/local-authority/30UE,Democratic Represent and  Mgnt,1007,NEW Policy & Governance,Other Contributions,40145,Grants and Subscriptions,5031,grant,08/06/2016,112834,400.00,Revenue,The Friends of Astley Hall,70956
Chorley Borough Council,http://statistics.data.gov.uk/id/local-authority/30UE,Democratic Represent and  Mgnt,1007,NEW Policy & Governance,Data Protection Registration,40173,Miscellaneous Expenses,5034,registration renewal,15/06/2016,113084,280.00,Revenue,The Information Commissioner,16278
Chorley Borough Council,http://statistics.data.gov.uk/id/local-authority/30UE,Central Support Services,1009,NEW Business Development & Growth,Computer Software-Maintenance,40107,Communication and Computing,5028,Annual TF facility support and maintenance as from 1st July 2016.,29/06/2016,113122,"5,176.00",Revenue,The Technology Forge Limited,65702
Chorley Borough Council,http://statistics.data.gov.uk/id/local-authority/30UE,Business Support,1095,NEW Business Development & Growth,Miscellaneous Expenses,40200,Miscellaneous Expenses,5034,Quantity Surveyor and Project Management Services to develop the Digital Office Park at Euxton Lane to RIBA 3 Stage ,03/06/2016,112478,"27,019.50",Revenue,Todd and Ledson,75048
Chorley Borough Council,http://statistics.data.gov.uk/id/local-authority/30UE,Business Support,1095,NEW Business Development & Growth,Miscellaneous Expenses,40200,Miscellaneous Expenses,5034,Quantity Surveyor and Project Management Services to develop the Digital Office Park at Euxton Lane to RIBA 3 Stage ,03/06/2016,112695,"25,407.90",Revenue,Todd and Ledson,75048
Chorley Borough Council,http://statistics.data.gov.uk/id/local-authority/30UE,Business Support,1095,NEW Business Development & Growth,Miscellaneous Expenses,40200,Miscellaneous Expenses,5034,Miscellaneous expense,03/06/2016,112695,-108.00,Revenue,Todd and Ledson,75048
Chorley Borough Council,http://statistics.data.gov.uk/id/local-authority/30UE,Business Support,1095,NEW Business Development & Growth,Miscellaneous Expenses,40200,Miscellaneous Expenses,5034,future proofing,01/06/2016,112757,380.00,Revenue,Tom Lucas Partnership,67598
Chorley Borough Council,http://statistics.data.gov.uk/id/local-authority/30UE,Unapportionable Central OHeads,1009,NEW Policy & Governance,General Subscriptions,40146,Grants and Subscriptions,5031,Subscription to SpendPro  shared between Chorley and SRBC for the period April 15 to March 16,24/06/2016,112594,750.00,Revenue,Trafford Council,52972
Chorley Borough Council,http://statistics.data.gov.uk/id/local-authority/30UE,Unapportionable Central OHeads,1009,NEW Policy & Governance,Service Fees,40056,Services,5027,Attendance at Health & Wellbeing Day 08/06/16,24/06/2016,113367,960.00,Revenue,Truly Therapeutic Ltd,66885
Chorley Borough Council,http://statistics.data.gov.uk/id/local-authority/30UE,Unapportionable Central OHeads,1009,NEW Policy & Governance,Television Licence,40170,Miscellaneous Expenses,5034,Town hall licence,01/06/2016,112710,145.50,Revenue,TV Licensing,18105
Chorley Borough Council,http://statistics.data.gov.uk/id/local-authority/30UE,Unapportionable Central OHeads,1009,NEW Policy & Governance,Television Licence,40170,Miscellaneous Expenses,5034,union street licence,01/06/2016,112710,145.50,Revenue,TV Licensing,18105
Chorley Borough Council,http://statistics.data.gov.uk/id/local-authority/30UE,Service Management & Support,1009,NEW Customer & Digital,Petrol,30005,Direct Transport Costs,5016,May-16,09/06/2016,112826,608.86,Revenue,Uk Fuels Ltd,57996
Chorley Borough Council,http://statistics.data.gov.uk/id/local-authority/30UE,Unapportionable Central OHeads,1009,NEW Policy & Governance,Miscellaneous Expenses,40200,Miscellaneous Expenses,5034,levles 1-5,08/06/2016,112947,"1,437.56",Revenue,UK Healthcare (BDHSC),17241
Chorley Borough Council,http://statistics.data.gov.uk/id/local-authority/30UE,Control Accounts,Control,NEW Policy & Governance,General Balances,100,Balance Sheet,Balance,top ups,08/06/2016,112947,669.94,Revenue,UK Healthcare (BDHSC),17241
Chorley Borough Council,http://statistics.data.gov.uk/id/local-authority/30UE,Unapportionable Central OHeads,1009,NEW Customer & Digital,Service Fees,40056,Services,5027,Annual Billing and inserts 2016-17,08/06/2016,112456,"1,029.54",Revenue,UKMAIL Ltd (Mail),57758
Chorley Borough Council,http://statistics.data.gov.uk/id/local-authority/30UE,Community Development,1097,NEW Policy & Governance,Grants To Other Organisations,40127,Grants and Subscriptions,5031,To deliver credit union services in Chorley - final invoice 201516,29/06/2016,112337,"18,750.00",Revenue,Unify Credit Union Ltd,55509
Chorley Borough Council,http://statistics.data.gov.uk/id/local-authority/30UE,Business Support,1095,NEW Business Development & Growth,Miscellaneous Expenses,40200,Miscellaneous Expenses,5034,For delinquent business loans - Unify Credit Union,10/06/2016,112969,624.97,Revenue,Unify Credit Union Ltd,55509
Chorley Borough Council,http://statistics.data.gov.uk/id/local-authority/30UE,Democratic Represent and  Mgnt,1007,NEW Business Development & Growth,Water - Metered Supplies,20022,Water Services,5009,Astley hall,01/06/2016,111250,"2,049.18",Revenue,United Utilities Water Plc,17926
Chorley Borough Council,http://statistics.data.gov.uk/id/local-authority/30UE,Democratic Represent and  Mgnt,1007,NEW Business Development & Growth,Water - Metered Supplies,20022,Water Services,5009,Astley hall,01/06/2016,111251,678.19,Revenue,United Utilities Water Plc,17926
Chorley Borough Council,http://statistics.data.gov.uk/id/local-authority/30UE,Democratic Represent and  Mgnt,1007,NEW Business Development & Growth,Water - Metered Supplies,20022,Water Services,5009,Astley hall,01/06/2016,111252,852.10,Revenue,United Utilities Water Plc,17926
Chorley Borough Council,http://statistics.data.gov.uk/id/local-authority/30UE,Democratic Represent and  Mgnt,1007,NEW Business Development & Growth,Water - Metered Supplies,20022,Water Services,5009,Astley hall,01/06/2016,111253,587.89,Revenue,United Utilities Water Plc,17926
Chorley Borough Council,http://statistics.data.gov.uk/id/local-authority/30UE,Democratic Represent and  Mgnt,1007,NEW Business Development & Growth,Water - Metered Supplies,20022,Water Services,5009,Rec ground,01/06/2016,111391,321.60,Revenue,United Utilities Water Plc,17926
Chorley Borough Council,http://statistics.data.gov.uk/id/local-authority/30UE,Homelessness,1075,NEW Business Development & Growth,Water - Metered Supplies,20022,Water Services,5009,Cotswold house,01/06/2016,111499,"1,746.33",Revenue,United Utilities Water Plc,17926
Chorley Borough Council,http://statistics.data.gov.uk/id/local-authority/30UE,Corporate Management,1008,NEW Business Development & Growth,Water - Metered Supplies,20022,Water Services,5009,Stump Lane,01/06/2016,111555,"1,079.44",Revenue,United Utilities Water Plc,17926
Chorley Borough Council,http://statistics.data.gov.uk/id/local-authority/30UE,Democratic Represent and  Mgnt,1007,NEW Business Development & Growth,Water - Metered Supplies,20022,Water Services,5009,Astley Hall,01/06/2016,111558,"1,224.84",Revenue,United Utilities Water Plc,17926
Chorley Borough Council,http://statistics.data.gov.uk/id/local-authority/30UE,Democratic Represent and  Mgnt,1007,NEW Business Development & Growth,Water - Metered Supplies,20022,Water Services,5009,Astley coach house,01/06/2016,111616,635.61,Revenue,United Utilities Water Plc,17926
Chorley Borough Council,http://statistics.data.gov.uk/id/local-authority/30UE,Economic Development,1096,NEW Business Development & Growth,Water - Metered Supplies,20022,Water Services,5009,Market stall 1,01/06/2016,111617,481.89,Revenue,United Utilities Water Plc,17926
Chorley Borough Council,http://statistics.data.gov.uk/id/local-authority/30UE,Democratic Represent and  Mgnt,1007,NEW Business Development & Growth,Water - Metered Supplies,20022,Water Services,5009,Astley park village,01/06/2016,111698,601.16,Revenue,United Utilities Water Plc,17926
Chorley Borough Council,http://statistics.data.gov.uk/id/local-authority/30UE,Unapportionable Central OHeads,1009,NEW Business Development & Growth,Water - Metered Supplies,20022,Water Services,5009,ADDRESS REDACTED,01/06/2016,112256,771.35,Revenue,United Utilities Water Plc,17926
Chorley Borough Council,http://statistics.data.gov.uk/id/local-authority/30UE,Corporate Management,1008,NEW Business Development & Growth,Water - Metered Supplies,20022,Water Services,5009,Toilets,01/06/2016,112420,"1,736.24",Revenue,United Utilities Water Plc,17926
Chorley Borough Council,http://statistics.data.gov.uk/id/local-authority/30UE,Other Short Term Debtors,,NEW Business Development & Growth,General Balances,100,Balance Sheet,Balance,waste water,01/06/2016,112769,"26,204.27",Revenue,United Utilities Water Plc,17926
Chorley Borough Council,http://statistics.data.gov.uk/id/local-authority/30UE,Central Support Services,1009,NEW Business Development & Growth,Water - Unmetered Supply,20023,Water Services,5009,Garage,10/06/2016,112941,"3,391.91",Revenue,United Utilities Water Plc,17926
Chorley Borough Council,http://statistics.data.gov.uk/id/local-authority/30UE,Unapportionable Central OHeads,1009,NEW Business Development & Growth,Water - Metered Supplies,20022,Water Services,5009,town hall,29/06/2016,113445,"1,048.01",Revenue,United Utilities Water Plc,17926
Chorley Borough Council,http://statistics.data.gov.uk/id/local-authority/30UE,Unapportionable Central OHeads,1009,NEW Business Development & Growth,Water - Metered Supplies,20022,Water Services,5009,town hall,29/06/2016,113446,"1,247.57",Revenue,United Utilities Water Plc,17926
Chorley Borough Council,http://statistics.data.gov.uk/id/local-authority/30UE,Homelessness,1075,NEW Business Development & Growth,Water - Metered Supplies,20022,Water Services,5009,cotswold house,29/06/2016,113477,"2,658.21",Revenue,United Utilities Water Plc,17926
Chorley Borough Council,http://statistics.data.gov.uk/id/local-authority/30UE,Development Control,1091,NEW Customer & Digital,Professional Fees,40063,Services,5027,app support,24/06/2016,113354,"1,721.06",Revenue,Urban Vision Partnership Ltd,21181
Chorley Borough Council,http://statistics.data.gov.uk/id/local-authority/30UE,Democratic Represent and  Mgnt,1007,NEW Policy & Governance,Processional Routes,40177,Miscellaneous Expenses,5034,Provision and implementation of traffic management plan for Chorley A&E protest march on Saturday 11 June,24/06/2016,113274,"1,000.00",Revenue,Ventbrook Ltd,69891
Chorley Borough Council,http://statistics.data.gov.uk/id/local-authority/30UE,Corporate Management,1008,NEW Customer & Digital,Unitary Payment(S),50009,Private Contractors,5042,Provision of household waste and recycling collection and ancillary services for 2016/17.,01/06/2016,112387,"287,044.24",Revenue,Veolia ES (UK) Ltd,20748
Chorley Borough Council,http://statistics.data.gov.uk/id/local-authority/30UE,Corporate Management,1008,NEW Customer & Digital,Unitary Payment(S),50009,Private Contractors,5042,"Repayment of core contract deduction for 2013/14, 2014/15 and 2015/16.",01/06/2016,112389,"153,004.03",Revenue,Veolia ES (UK) Ltd,20748
Chorley Borough Council,http://statistics.data.gov.uk/id/local-authority/30UE,Development Control,1091,NEW Policy & Governance,Car Leasing Payment,14100,Direct Employee Expenses,5001,NAME REDACTED,10/06/2016,112948,"3,324.08",Revenue,VWFS UK Ltd T/A Volkswagen Group Leasing,56010
Chorley Borough Council,http://statistics.data.gov.uk/id/local-authority/30UE,Development Control,1091,NEW Policy & Governance,Car Leasing Payment,14100,Direct Employee Expenses,5001,Car Lease Payment,10/06/2016,112948,281.18,Revenue,VWFS UK Ltd T/A Volkswagen Group Leasing,56010
Chorley Borough Council,http://statistics.data.gov.uk/id/local-authority/30UE,Control Accounts,Control,NEW Policy & Governance,Manual Control Account,1,Balance Sheet,Balance,balance sheet,10/06/2016,112948,-281.18,Revenue,VWFS UK Ltd T/A Volkswagen Group Leasing,56010
Chorley Borough Council,http://statistics.data.gov.uk/id/local-authority/30UE,Economic Development,1096,NEW Policy & Governance,Car Leasing Payment,14100,Direct Employee Expenses,5001,NAME REDACTED,10/06/2016,112949,"3,337.51",Revenue,VWFS UK Ltd T/A Volkswagen Group Leasing,56010
Chorley Borough Council,http://statistics.data.gov.uk/id/local-authority/30UE,Economic Development,1096,NEW Policy & Governance,Car Leasing Payment,14100,Direct Employee Expenses,5001,Car Lease Payment,10/06/2016,112949,291.72,Revenue,VWFS UK Ltd T/A Volkswagen Group Leasing,56010
Chorley Borough Council,http://statistics.data.gov.uk/id/local-authority/30UE,Control Accounts,Control,NEW Policy & Governance,Manual Control Account,1,Balance Sheet,Balance,balance sheet,10/06/2016,112949,-291.72,Revenue,VWFS UK Ltd T/A Volkswagen Group Leasing,56010
Chorley Borough Council,http://statistics.data.gov.uk/id/local-authority/30UE,Building Control,1090,NEW Policy & Governance,Car Leasing Payment,14100,Direct Employee Expenses,5001,NAME REDACTED,10/06/2016,112950,"3,604.38",Revenue,VWFS UK Ltd T/A Volkswagen Group Leasing,56010
Chorley Borough Council,http://statistics.data.gov.uk/id/local-authority/30UE,Building Control,1090,NEW Policy & Governance,Car Leasing Payment,14100,Direct Employee Expenses,5001,Car Lease Payment,10/06/2016,112950,300.61,Revenue,VWFS UK Ltd T/A Volkswagen Group Leasing,56010
Chorley Borough Council,http://statistics.data.gov.uk/id/local-authority/30UE,Control Accounts,Control,NEW Policy & Governance,Manual Control Account,1,Balance Sheet,Balance,balance sheet,10/06/2016,112950,-300.61,Revenue,VWFS UK Ltd T/A Volkswagen Group Leasing,56010
Chorley Borough Council,http://statistics.data.gov.uk/id/local-authority/30UE,Unapportionable Central OHeads,1009,NEW Policy & Governance,Tools & Equipment - Purchase,40003,"Equipment, Furniture & Materia",5023,Project number #7504 500 printed lanyards `Chorley Council` in red with white print and safety break trigger clip,15/06/2016,112926,265.60,Revenue,WeBrand4You,68716
Chorley Borough Council,http://statistics.data.gov.uk/id/local-authority/30UE,Unapportionable Central OHeads,1009,NEW Chief Executive,Postages,40082,Communication and Computing,5028,"Mail Collection for Town Hall and Union Street, April 2016 - March 2017",17/06/2016,113101,762.87,Revenue,Whistl North Limited,67256
Chorley Borough Council,http://statistics.data.gov.uk/id/local-authority/30UE,Unapportionable Central OHeads,1009,NEW Chief Executive,Postages,40082,Communication and Computing,5028,"Mail Collection for Town Hall and Union Street, April 2016 - March 2017",17/06/2016,113186,453.51,Revenue,Whistl North Limited,67256
Chorley Borough Council,http://statistics.data.gov.uk/id/local-authority/30UE,Unapportionable Central OHeads,1009,NEW Chief Executive,Postages,40082,Communication and Computing,5028,"Mail Collection for Town Hall and Union Street, April 2016 - March 2017",17/06/2016,113201,596.97,Revenue,Whistl North Limited,67256
Chorley Borough Council,http://statistics.data.gov.uk/id/local-authority/30UE,Unapportionable Central OHeads,1009,NEW Chief Executive,Postages,40082,Communication and Computing,5028,"Mail Collection for Town Hall and Union Street, April 2016 - March 2017",17/06/2016,113202,788.84,Revenue,Whistl North Limited,67256
Chorley Borough Council,http://statistics.data.gov.uk/id/local-authority/30UE,Democratic Represent and  Mgnt,1007,NEW Policy & Governance,Exhibitions & Special Events,40158,Miscellaneous Expenses,5034,"For curatorial services on the Sacrifice Project in May 2016: 2 days @ 104.33 [May 11th & 23rd] 208.66 7 hours @13.91 ",17/06/2016,113128,340.03,Revenue,Whittle and Draper Fine Art,52271
Chorley Borough Council,http://statistics.data.gov.uk/id/local-authority/30UE,Business Support,1095,NEW Business Development & Growth,Grants To Other Organisations,40127,Grants and Subscriptions,5031,business rate subsidy 1,03/06/2016,112816,434.88,Revenue,Wild Orchid,67522
Chorley Borough Council,http://statistics.data.gov.uk/id/local-authority/30UE,Central Support Services,1009,NEW Early Intervention,Miscellaneous Expenses,40200,Miscellaneous Expenses,5034,"1x 4G Mini Dome (wifi only, 4G ready) with a 1TB Hard Drive and 12 month warranty 1x Lenovo laptop viewing device with WCCTV",08/06/2016,112585,"3,500.00",Revenue,Wireless CCTV Ltd,20232
Chorley Borough Council,http://statistics.data.gov.uk/id/local-authority/30UE,Service Management & Support,1009,NEW Customer & Digital,Supplies-Grounds Maintenance,40025,"Equipment, Furniture & Materia",5023,Supply 20 x litterbins to Chorley specification as per your quote 37366 sent to NAME REDACTED on 02/02/2016 to be delivered ,15/06/2016,112890,"3,800.00",Revenue,Wybone Ltd,18097
Chorley Borough Council,http://statistics.data.gov.uk/id/local-authority/30UE,Service Management & Support,1009,NEW Customer & Digital,Supplies-Grounds Maintenance,40025,"Equipment, Furniture & Materia",5023,"Please supply Hexagonal Galvanised Steel Liner cw 2 x Handles To The Interior (H664mm x D400mm), as per quote received",15/06/2016,112962,656.37,Revenue,Wybone Ltd,18097
Chorley Borough Council,http://statistics.data.gov.uk/id/local-authority/30UE,Capital,Capital,NEW Customer & Digital,Main Contractor,3007,Capital Expenditure,Capital,Buttermere Green Gemini Surf fencing and gates in Green. - Supply and Install as per quotation 47315,10/06/2016,112966,"9,279.94",Capital,Zaun Limited,75222
